Workbook

Sheet Inputs
C3: TCRP E-09
C4: TRANSIT STATE OF GOOD REPAIR
C5: AGE-BASED MODEL - INPUTS
C7: INSTRUCTIONS
C9: Note: this model is used to predict the average annual cost and prioritization values for
C10: transit assets based on asset age for guideway, facilities, systems and stations.
C11: Default deterioration rates have been derived from the FTA TERM model.
C12: To use this model please follow these instructions, and see the TCRP E-09 report for more information.
D13: 1. Open the spreadsheet with macros enabled.
D14: 2. Select an asset type from the dropdown or select "User-Specified" if developing a new model.
D15: 3. Enter the unit agency asset replacement cost.
D16: 4. Enter the age at which the asset is typically replaced (populated by default for each asset type).
D17: 5. If desired enter the user replacement cost (negative values represent additional replacement benefits).
D18: 6. If desired enter the annual maintenance cost as a percentage of the replacement cost (5% by default).
D19: 7. If desired enter the agency failure cost as a percentage of the replacement cost (150% by default).
D20: 8. If desired enter the user failure cost as a percentage of the replacement cost (150% by default).
D21: 9. If desired enter the discount rate (7% by default).
D22: 10. If desired enter values for the shape and scale parameters (populated by default for each asset type).
D23: 11. To view results click the "Click for Results" button.
C25: REQUIRED INPUTS
C27: Asset: | E27: Guideway-Curved Ballasted Track
F29: Override
E30: Default | F30: Value | G30: Notes
C32: Unit Agency Replacement Cost ($): | E32: 1
C33: Assumed Replacement Age (years): | E33: =VLOOKUP($E$27,Calculations!$A$1008:$D$1135,2) -> 35 | G33: Default populated based on TERM model
C35: OPTIONAL INPUTS
F37: Override
E38: Default | F38: Value | G38: Notes
C40: Unit User Replacement Cost ($): | E40: 0 | G40: Negative values indicate additional benefits
C41: Annual Maintenance Cost %: | E41: 0.05 | G41: Percent of the agency replacement cost
C42: Agency Failure Cost %: | E42: 1.5 | G42: Percent of the agency replacement cost
C43: User Failure Cost %: | E43: 1.5 | G43: Percent of the agency replacement cost
C44: Discount Rate %: | E44: 0.07
C45: Shape Parameter: | E45: =VLOOKUP($E$27,Calculations!$A$1008:$D$1135,3) -> 3.371657028 | G45: Default values derived from TERM model
C46: Scale Parameter: | E46: =VLOOKUP($E$27,Calculations!$A$1008:$D$1135,4) -> 37.63959362 | G46: Default values derived from TERM model
C48: Asset List
C49: User-Specified
C50: Guideway-At Grade Ballasted or Expressway
C51: Guideway-Grade Crossing
C52: Guideway-Elevated Structure
C53: Guideway-Steel Viaduct
C54: Guideway-Bridge
C55: Guideway-Foot Walk
C56: Guideway-Elevated Fill
C57: Guideway-Tunnel
C58: Guideway-Retained Cut
C59: Guideway-Tangent Direct Fixation Track
C60: Guideway-Curved Direct Fixation Track
C61: Guideway-Guarded Direct Fixation Track
C62: Guideway-Direct Fixation Tangent Platform Track
C63: Guideway-Direct Fixation Curved Platform Track
C64: Guideway-Guarded Curved Direct Fixation Track
C65: Guideway-Tangent Ballasted Track
C66: Guideway-Curved Ballasted Track
C67: Guideway-Guarded Ballasted Track
C68: Guideway-Ballasted Tangent Platform Track
C69: Guideway-Ballasted Curved Platform Track
C70: Guideway-Guarded Platform Ballasted Track
C71: Guideway-Tangent Embedded Track
C72: Guideway-Curved Embedded Track
C73: Guideway-At-Grade Crossing
C74: Guideway-Special Trackwork
C75: Guideway-Direct Fixation Diamond Crossover
C76: Guideway-Direct Fixation or Ballasted Turnout
C77: Guideway-Turntable
C78: Guideway-Yard Track
C79: Guideway-Wood Tie
C80: Guideway-Concrete Tie
C81: Guideway-Retaining Wall
C82: Guideway-At Grade Bus
C83: Guideway-Bus Turnaround
C84: Guideway-Elevated-Bus
C85: Guideway-Subway Bus
C86: Facilities-Administrative Building
C87: Facilities-Maintenance Building
C88: Facilities-Passenger Building
C89: Facilities-Building Utilities
C90: Facilities-Access and Parking
C91: Facilities-Building Utilities-Elevators and Conveying Systems
C92: Facilities-Building Utilities-Generator
C93: Facilities-Storage Yard
C94: Facilities-Storage Yard-Bus
C95: Facilities-Bus Turnaround Facility
C96: Facilities-Maintenance Equipment
C97: Facilities-Pollution Treatment
C98: Facilities-Bus Washer
C99: Facilities-Train Washer
C100: Facilities-Vehicle Paintbooth
C101: Facilities-Fuel Island
C102: Facilities-Dynamoneter
C103: Facilities-Portable Lift
C104: Facilities-Fixed Lift
C105: Facilities-Wheel Truing Machine
C106: Facilities-Brake Lathe
C107: Facilities-Major Rail Shop
C108: Facilities-Major Bus Shop
C109: Facilities-Train Control Center
C110: Systems-Train Control, Elec., Comm., Revenue Collect. & Util.
C111: Systems-Train Control
C112: Systems-Train Control
C113: Systems-Signals & Train Stops
C114: Systems-Train Control Cable
C115: Systems-Signal Bridge
C116: Systems-Centralized Train Control
C117: Systems-Gates, Flashers, Crossings
C118: Systems-Roadway Traffic Signals
C119: Systems-Interlocking
C120: Systems-Electrification
C121: Systems-Electrification Catenary/Pole
C122: Systems-Electrification Substation
C123: Systems-High Tension Towers
C124: Systems-Electrification Substation Building Components
C125: Systems-Electrification Breaker House
C126: Systems-Electrification Contact Rail/Protection Boards
C127: Systems-Heaters
C128: Systems-Power Cable
C129: Systems-Electrical Systems
C130: Systems-Trolley Wire
C131: Systems-Communications Cable
C132: Systems-Communciations
C133: Systems-MIS/IT/Network System
C134: Systems-Emergency Location System
C135: Systems-SCADA RTU
C136: Systems-Communications Hut or Room
C137: Systems-Bus On-Board Video System
C138: Systems-Central Revenue Collection
C139: Systems-Coin/Bill Counter
C140: Systems-Revenue Collection System-Rail
C141: Systems-Turnstile
C142: Systems-In Station Revenue Collection Equipment
C143: Systems-Parking Meter
C144: Systems-Change Machine
C145: Systems-Passenger Counter-Rail
C146: Systems-System Utilities
C147: Systems-Lighting
C148: Systems-Guideway Drainage
C149: Systems-Pump Room
C150: Systems-Deep Utility Well
C151: Systems-Sump Pump/Discharge Pipes
C152: Systems-Subway Ventilation
C153: Systems-Fan Plant
C154: Systems-Compressed Air Pipes
C155: Systems-Air Conditioning/HVAC-Subway
C156: Systems-Emergency Exit
C157: Systems-Tunnel Handrail
C158: Systems-ITS, APC, AVL, CAD, GPL
C159: Station-Building-Rail
C160: Stations-Building-Subway
C161: Stations-Shelter-Rail
C162: Stations-Token Booth
C163: Stations-Elevator/Escalator
C164: Stations-Parking Garage/Lot
C165: Stations-Parking Equipment
C166: Stations-Pedestrian Walkway/Elevated
C167: Stations-Pedestrian Walkway/Subway
C168: Stations-At-Grade Rail Platform
C169: Stations-Elevated Rail Platform
C170: Stations-Subway Rail Platform
C171: Stations-Building/Ground Access-Bus
C172: Stations-Bus Shelter
C173: Stations-Station Canopy
C174: Stations-Bus Station Platform
C175: Stations-Signage & Graphics
C176: Stations-Ferry Terminal Building/Dock

Sheet Results
C3: TCRP E-09
C4: TRANSIT STATE OF GOOD REPAIR
C5: AGE-BASED MODEL - RESULTS
C7: SUMMARY RESULTS
C9: Asset: | G9: =Inputs!E27 -> Guideway-Curved Ballasted Track
C10: Assumed Replacement Age (years): | G10: =Calculations!C14 -> 35
C11: Average Annual Unit Agency Cost: | G11: =Calculations!C19 -> 0.1354942129
C12: Average Annual Unit User Cost: | G12: =Calculations!C20 -> 0.01225532754
C13: Average Annual Unit Total Cost: | G13: =Calculations!C21 -> 0.1477495405
C15: PRIORITIZATION DATA
C17: Prioritization Index (PI) Coefficients (copy and paste into the prioritization model)
C18: Note: PI = C0 + C1 * Age + C2 * Age^2
C20: C0 | D20: C1 | E20: C2
C22: =Calculations!C25 -> -0.1323319294 | D22: =Calculations!B25 -> 0.0005404647255 | E22: =Calculations!A25 -> 0.0001261156813
C24: Sample PI Results
C25: Age | D25: PI
C26: =Calculations!A29 -> 25 | D26: =Calculations!D29 -> -0.03999801042
C27: =Calculations!A30 -> 26 | D27: =Calculations!D30 -> -0.03302564595
C28: =Calculations!A31 -> 27 | D28: =Calculations!D31 -> -0.02580105011
C29: =Calculations!A32 -> 28 | D29: =Calculations!D32 -> -0.01832422292
C30: =Calculations!A33 -> 29 | D30: =Calculations!D33 -> -0.01059516436
C31: =Calculations!A34 -> 30 | D31: =Calculations!D34 -> -0.002613874438
C32: =Calculations!A35 -> 31 | D32: =Calculations!D35 -> 0.005619646846
C33: =Calculations!A36 -> 32 | D33: =Calculations!D36 -> 0.01410539949
C34: =Calculations!A37 -> 33 | D34: =Calculations!D37 -> 0.0228433835
C35: =Calculations!A38 -> 34 | D35: =Calculations!D38 -> 0.03183359887
C36: =Calculations!A39 -> 35 | D36: =Calculations!D39 -> 0.04107604561
C37: =Calculations!A40 -> 36 | D37: =Calculations!D40 -> 0.0505707237
C38: =Calculations!A41 -> 37 | D38: =Calculations!D41 -> 0.06031763316
C39: =Calculations!A42 -> 38 | D39: =Calculations!D42 -> 0.07031677398
C40: =Calculations!A43 -> 39 | D40: =Calculations!D43 -> 0.08056814617
C41: =Calculations!A44 -> 40 | D41: =Calculations!D44 -> 0.09107174971
C42: =Calculations!A45 -> 41 | D42: =Calculations!D45 -> 0.1018275846
C43: =Calculations!A46 -> 42 | D43: =Calculations!D46 -> 0.1128356509
C44: =Calculations!A47 -> 43 | D44: =Calculations!D47 -> 0.1240959485
C45: =Calculations!A48 -> 44 | D45: =Calculations!D48 -> 0.1356084775
C46: =Calculations!A49 -> 45 | D46: =Calculations!D49 -> 0.1473732379

Sheet Calculations
A1: Transit Asset Rebilitation/Replacement Age-Based Model
A2: Inputs and Results
A4: Parameters
A5: Description | B5: Label | C5: Value
A6: Discount rate | B6: i | C6: =IF(Inputs!$F$44<>"",Inputs!$F$44,Inputs!$E$44) -> 0.07
A7: Agency replacment cost | B7: CPa | C7: =IF(Inputs!$F$32<>"",Inputs!$F$32,Inputs!$E$32) -> 1
A8: Total replacement cost | B8: CP | C8: =C7+IF(Inputs!$F$40<>"",Inputs!$F$40,Inputs!$E$40) -> 1
A9: Annual maintenance cost | B9: CM | C9: =C$7*IF(Inputs!$F$41<>"",Inputs!$F$41,Inputs!$E$41) -> 0.05
A10: Agency failure cost | B10: CFa | C10: =C$8*IF(Inputs!$F$42<>"",Inputs!$F$42,Inputs!$E$42) -> 1.5
A11: Total failure cost | B11: CF | C11: =C$8*IF(Inputs!$F$43<>"",Inputs!$F$43,Inputs!$E$43)+C10 -> 3
A12: Weibull shape parameter | B12: k | C12: =IF(Inputs!$F$45<>"",Inputs!$F$45,Inputs!$E$45) -> 3.371657028
A13: Weibull scale parameter | B13: λ | C13: =IF(Inputs!$F$46<>"",Inputs!$F$46,Inputs!$E$46) -> 37.63959362
A14: Policy for replacement (year) | B14: A | C14: =IF(Inputs!$F$33<>"",Inputs!$F$33,Inputs!$E$33) -> 35
A15: Replacement year to test | C15: =C14 -> 35
A17: ="Simulation Results (assuming replacement in Year "&C14&")" -> Simulation Results (assuming replacement in Year 35)
A18: Description | C18: Value
A19: Average annual agency cost (avg. of 500 trials) | C19: =$D$184*($C$6/(1-(1+$C$6)^-$A$184)) -> 0.1354942129
A20: Average annual user cost (avg. of 500 trials) | C20: =$C$21-$C$19 -> 0.01225532754
A21: Average annual total cost (avg. of 500 trials) | C21: =$G$184*($C$6/(1-(1+$C$6)^-$A$184)) -> 0.1477495405
A23: Model Coefficients (use for prioritzation tool)
A24: c2 | B24: c1 | C24: c0
A25: =LINEST(C29:C79,A29:B79) -> 0.0001261156813 | B25: 0.0005404647255 | C25: -0.1323319294
A27: Predicted Prioritization Index by Age
A28: Age | B28: Age^2 | C28: PI | D28: Predicted PI | E28: CDF | F28: Cond. Prob.
A29: =MAX(5,C14-10) -> 25 | B29: =A29^2 -> 625 | C29: =(((((1-(EXP(-((A29/$C$13)^$C$12))/EXP(-(((A29-1)/$C$13)^$C$12))))*($C$11-$C$8))+(1-(1-(EXP(-((A29/$C$13)^$C$12))/EXP(-(((A29-1)/$C$13)^$C$12)))))*($C$9))-$C$21)/$C$7) -> -0.03565420813 | D29: =$C$25+$B$25*A29+$A$25*B29 -> -0.03999801042 | E29: =1-EXP(-((A29/Calculations!$C$13)^Calculations!$C$12)) -> 0.2225025667 | F29: =(1-(EXP(-(((A29)/Calculations!$C$13)^Calculations!$C$12))/EXP(-(((A29-1)/Calculations!$C$13)^Calculations!$C$12)))) -> 0.03184376018
A30: =A29+1 -> 26 | B30: 676 | C30: =(((((1-(EXP(-((A30/$C$13)^$C$12))/EXP(-(((A30-1)/$C$13)^$C$12))))*($C$11-$C$8))+(1-(1-(EXP(-((A30/$C$13)^$C$12))/EXP(-(((A30-1)/$C$13)^$C$12)))))*($C$9))-$C$21)/$C$7) -> -0.029584529 | D30: =$C$25+$B$25*A30+$A$25*B30 -> -0.03302564595 | E30: =1-EXP(-((A30/Calculations!$C$13)^Calculations!$C$12)) -> 0.2496810905 | F30: =(1-(EXP(-(((A30)/Calculations!$C$13)^Calculations!$C$12))/EXP(-(((A30-1)/Calculations!$C$13)^Calculations!$C$12)))) -> 0.03495641615
A31: =A30+1 -> 27 | B31: 729 | C31: -0.02320056748 | D31: -0.02580105011 | E31: =1-EXP(-((A31/Calculations!$C$13)^Calculations!$C$12)) -> 0.2783659644 | F31: =(1-(EXP(-(((A31)/Calculations!$C$13)^Calculations!$C$12))/EXP(-(((A31-1)/Calculations!$C$13)^Calculations!$C$12)))) -> 0.03823024257
A32: 28 | B32: 784 | C32: -0.0165008681 | D32: -0.01832422292 | E32: =1-EXP(-((A32/Calculations!$C$13)^Calculations!$C$12)) -> 0.3084335579 | F32: =(1-(EXP(-(((A32)/Calculations!$C$13)^Calculations!$C$12))/EXP(-(((A32-1)/Calculations!$C$13)^Calculations!$C$12)))) -> 0.04166598584
A33: 29 | B33: 841 | C33: -0.00948431326 | D33: -0.01059516436 | E33: =1-EXP(-((A33/Calculations!$C$13)^Calculations!$C$12)) -> 0.3397367729 | F33: =(1-(EXP(-(((A33)/Calculations!$C$13)^Calculations!$C$12))/EXP(-(((A33-1)/Calculations!$C$13)^Calculations!$C$12)))) -> 0.04526421909
A34: 30 | B34: 900 | C34: -0.002150119457 | D34: -0.002613874438 | E34: =1-EXP(-((A34/Calculations!$C$13)^Calculations!$C$12)) -> 0.3721064048 | F34: =(1-(EXP(-(((A34)/Calculations!$C$13)^Calculations!$C$12))/EXP(-(((A34-1)/Calculations!$C$13)^Calculations!$C$12)))) -> 0.04902534412
A35: 31 | B35: 961 | C35: 0.005502166271 | D35: 0.005619646846 | E35: =1-EXP(-((A35/Calculations!$C$13)^Calculations!$C$12)) -> 0.4053531153 | F35: =(1-(EXP(-(((A35)/Calculations!$C$13)^Calculations!$C$12))/EXP(-(((A35-1)/Calculations!$C$13)^Calculations!$C$12)))) -> 0.05294959321
A36: 32 | B36: 1024 | C36: 0.01347266968 | D36: 0.01410539949 | E36: =1-EXP(-((A36/Calculations!$C$13)^Calculations!$C$12)) -> 0.439270008 | F36: =(1-(EXP(-(((A36)/Calculations!$C$13)^Calculations!$C$12))/EXP(-(((A36-1)/Calculations!$C$13)^Calculations!$C$12)))) -> 0.05703703085
A37: 33 | B37: 1089 | C37: 0.02176119252 | D37: 0.0228433835 | E37: =1-EXP(-((A37/Calculations!$C$13)^Calculations!$C$12)) -> 0.4736357784 | F37: =(1-(EXP(-(((A37)/Calculations!$C$13)^Calculations!$C$12))/EXP(-(((A37-1)/Calculations!$C$13)^Calculations!$C$12)))) -> 0.06128755539
A38: 34 | B38: 1156 | C38: 0.03036721574 | D38: 0.03183359887 | E38: =1-EXP(-((A38/Calculations!$C$13)^Calculations!$C$12)) -> 0.5082183818 | F38: =(1-(EXP(-(((A38)/Calculations!$C$13)^Calculations!$C$12))/EXP(-(((A38-1)/Calculations!$C$13)^Calculations!$C$12)))) -> 0.06570090063
A39: 35 | B39: 1225 | C39: 0.03928990262 | D39: 0.04107604561 | E39: =1-EXP(-((A39/Calculations!$C$13)^Calculations!$C$12)) -> 0.5427791403 | F39: =(1-(EXP(-(((A39)/Calculations!$C$13)^Calculations!$C$12))/EXP(-(((A39-1)/Calculations!$C$13)^Calculations!$C$12)))) -> 0.07027663749
A40: 36 | B40: 1296 | C40: 0.04852810194 | D40: 0.0505707237 | E40: =1-EXP(-((A40/Calculations!$C$13)^Calculations!$C$12)) -> 0.5770771862 | F40: =(1-(EXP(-(((A40)/Calculations!$C$13)^Calculations!$C$12))/EXP(-(((A40-1)/Calculations!$C$13)^Calculations!$C$12)))) -> 0.0750141756
A41: 37 | B41: 1369 | C41: 0.05808035126 | D41: 0.06031763316 | E41: =1-EXP(-((A41/Calculations!$C$13)^Calculations!$C$12)) -> 0.6108741176 | F41: =(1-(EXP(-(((A41)/Calculations!$C$13)^Calculations!$C$12))/EXP(-(((A41-1)/Calculations!$C$13)^Calculations!$C$12)))) -> 0.079912765
A42: 38 | B42: 1444 | C42: 0.06794488031 | D42: 0.07031677398 | E42: =1-EXP(-((A42/Calculations!$C$13)^Calculations!$C$12)) -> 0.6439387267 | F42: =(1-(EXP(-(((A42)/Calculations!$C$13)^Calculations!$C$12))/EXP(-(((A42-1)/Calculations!$C$13)^Calculations!$C$12)))) -> 0.08497149784
A43: 39 | B43: 1521 | C43: 0.07811961444 | D43: 0.08056814617 | E43: =1-EXP(-((A43/Calculations!$C$13)^Calculations!$C$12)) -> 0.6760516473 | F43: =(1-(EXP(-(((A43)/Calculations!$C$13)^Calculations!$C$12))/EXP(-(((A43-1)/Calculations!$C$13)^Calculations!$C$12)))) -> 0.09018931022
A44: 40 | B44: 1600 | C44: 0.0886021783 | D44: 0.09107174971 | E44: =1-EXP(-((A44/Calculations!$C$13)^Calculations!$C$12)) -> 0.7070097665 | F44: =(1-(EXP(-(((A44)/Calculations!$C$13)^Calculations!$C$12))/EXP(-(((A44-1)/Calculations!$C$13)^Calculations!$C$12)))) -> 0.09556498399
A45: 41 | B45: 1681 | C45: 0.09938989967 | D45: 0.1018275846 | E45: =1-EXP(-((A45/Calculations!$C$13)^Calculations!$C$12)) -> 0.7366302437 | F45: =(1-(EXP(-(((A45)/Calculations!$C$13)^Calculations!$C$12))/EXP(-(((A45-1)/Calculations!$C$13)^Calculations!$C$12)))) -> 0.1010971488
A46: 42 | B46: 1764 | C46: 0.1104798135 | D46: 0.1128356509 | E46: =1-EXP(-((A46/Calculations!$C$13)^Calculations!$C$12)) -> 0.7647539946 | F46: =(1-(EXP(-(((A46)/Calculations!$C$13)^Calculations!$C$12))/EXP(-(((A46-1)/Calculations!$C$13)^Calculations!$C$12)))) -> 0.1067842841
A47: 43 | B47: 1849 | C47: 0.1218686662 | D47: 0.1240959485 | E47: =1-EXP(-((A47/Calculations!$C$13)^Calculations!$C$12)) -> 0.7912485104 | F47: =(1-(EXP(-(((A47)/Calculations!$C$13)^Calculations!$C$12))/EXP(-(((A47-1)/Calculations!$C$13)^Calculations!$C$12)))) -> 0.1126247214
A48: 44 | B48: 1936 | C48: 0.1335529199 | D48: 0.1356084775 | E48: =1-EXP(-((A48/Calculations!$C$13)^Calculations!$C$12)) -> 0.816009912 | F48: =(1-(EXP(-(((A48)/Calculations!$C$13)^Calculations!$C$12))/EXP(-(((A48-1)/Calculations!$C$13)^Calculations!$C$12)))) -> 0.1186166464
A49: 45 | B49: 2025 | C49: 0.1455287576 | D49: 0.1473732379 | E49: =1-EXP(-((A49/Calculations!$C$13)^Calculations!$C$12)) -> 0.8389641661 | F49: =(1-(EXP(-(((A49)/Calculations!$C$13)^Calculations!$C$12))/EXP(-(((A49-1)/Calculations!$C$13)^Calculations!$C$12)))) -> 0.1247581016
A50: 46 | B50: 2116 | C50: 0.1577920875 | D50: 0.1593902296 | E50: =1-EXP(-((A50/Calculations!$C$13)^Calculations!$C$12)) -> 0.8600674272 | F50: =(1-(EXP(-(((A50)/Calculations!$C$13)^Calculations!$C$12))/EXP(-(((A50-1)/Calculations!$C$13)^Calculations!$C$12)))) -> 0.1310469887
A51: 47 | B51: 2209 | C51: 0.1703385486 | D51: 0.1716594527 | E51: =1-EXP(-((A51/Calculations!$C$13)^Calculations!$C$12)) -> 0.8793055072 | F51: =(1-(EXP(-(((A51)/Calculations!$C$13)^Calculations!$C$12))/EXP(-(((A51-1)/Calculations!$C$13)^Calculations!$C$12)))) -> 0.1374810713
A52: 48 | B52: 2304 | C52: 0.1831635164 | D52: 0.1841809071 | E52: =1-EXP(-((A52/Calculations!$C$13)^Calculations!$C$12)) -> 0.8966925118 | F52: =(1-(EXP(-(((A52)/Calculations!$C$13)^Calculations!$C$12))/EXP(-(((A52-1)/Calculations!$C$13)^Calculations!$C$12)))) -> 0.1440579779
A53: 49 | B53: 2401 | C53: 0.1962621078 | D53: 0.1969545929 | E53: =1-EXP(-((A53/Calculations!$C$13)^Calculations!$C$12)) -> 0.9122687194 | F53: =(1-(EXP(-(((A53)/Calculations!$C$13)^Calculations!$C$12))/EXP(-(((A53-1)/Calculations!$C$13)^Calculations!$C$12)))) -> 0.1507752043
A54: =A53+1 -> 50 | B54: 2500 | C54: 0.209629188 | D54: 0.2099805101 | E54: =1-EXP(-((A54/Calculations!$C$13)^Calculations!$C$12)) -> 0.9260978115 | F54: =(1-(EXP(-(((A54)/Calculations!$C$13)^Calculations!$C$12))/EXP(-(((A54-1)/Calculations!$C$13)^Calculations!$C$12)))) -> 0.1576301172
A55: 51 | B55: 2601 | C55: 0.223259376 | D55: 0.2232586587 | E55: =1-EXP(-((A55/Calculations!$C$13)^Calculations!$C$12)) -> 0.9382635866 | F55: =(1-(EXP(-(((A55)/Calculations!$C$13)^Calculations!$C$12))/EXP(-(((A55-1)/Calculations!$C$13)^Calculations!$C$12)))) -> 0.1646199572
A56: 52 | B56: 2704 | C56: 0.2371470515 | D56: 0.2367890386 | E56: =1-EXP(-((A56/Calculations!$C$13)^Calculations!$C$12)) -> 0.9488663119 | F56: =(1-(EXP(-(((A56)/Calculations!$C$13)^Calculations!$C$12))/EXP(-(((A56-1)/Calculations!$C$13)^Calculations!$C$12)))) -> 0.171741842
A57: 53 | B57: 2809 | C57: 0.2512863616 | D57: 0.2505716498 | E57: =1-EXP(-((A57/Calculations!$C$13)^Calculations!$C$12)) -> 0.9580188724 | F57: =(1-(EXP(-(((A57)/Calculations!$C$13)^Calculations!$C$12))/EXP(-(((A57-1)/Calculations!$C$13)^Calculations!$C$12)))) -> 0.1789927703
A58: 54 | B58: 2916 | C58: 0.2656712277 | D58: 0.2646064924 | E58: =1-EXP(-((A58/Calculations!$C$13)^Calculations!$C$12)) -> 0.9658428794 | F58: =(1-(EXP(-(((A58)/Calculations!$C$13)^Calculations!$C$12))/EXP(-(((A58-1)/Calculations!$C$13)^Calculations!$C$12)))) -> 0.1863696247
A59: 55 | B59: 3025 | C59: 0.2802953529 | D59: 0.2788935664 | E59: =1-EXP(-((A59/Calculations!$C$13)^Calculations!$C$12)) -> 0.9724648922 | F59: =(1-(EXP(-(((A59)/Calculations!$C$13)^Calculations!$C$12))/EXP(-(((A59-1)/Calculations!$C$13)^Calculations!$C$12)))) -> 0.1938691761
A60: 56 | B60: 3136 | C60: 0.2951522292 | D60: 0.2934328718 | E60: =1-EXP(-((A60/Calculations!$C$13)^Calculations!$C$12)) -> 0.9780128884 | F60: =(1-(EXP(-(((A60)/Calculations!$C$13)^Calculations!$C$12))/EXP(-(((A60-1)/Calculations!$C$13)^Calculations!$C$12)))) -> 0.201488087
A61: 57 | B61: =A61^2 -> 3249 | C61: 0.3102351457 | D61: 0.3082244085 | E61: =1-EXP(-((A61/Calculations!$C$13)^Calculations!$C$12)) -> 0.982613096 | F61: =(1-(EXP(-(((A61)/Calculations!$C$13)^Calculations!$C$12))/EXP(-(((A61-1)/Calculations!$C$13)^Calculations!$C$12)))) -> 0.209222916
A62: 58 | B62: 3364 | C62: 0.3255371964 | D62: 0.3232681766 | E62: =1-EXP(-((A62/Calculations!$C$13)^Calculations!$C$12)) -> 0.9863872734 | F62: =(1-(EXP(-(((A62)/Calculations!$C$13)^Calculations!$C$12))/EXP(-(((A62-1)/Calculations!$C$13)^Calculations!$C$12)))) -> 0.2170701215
A63: 59 | B63: 3481 | C63: 0.3410512881 | D63: 0.338564176 | E63: =1-EXP(-((A63/Calculations!$C$13)^Calculations!$C$12)) -> 0.9894504917 | F63: =(1-(EXP(-(((A63)/Calculations!$C$13)^Calculations!$C$12))/EXP(-(((A63-1)/Calculations!$C$13)^Calculations!$C$12)))) -> 0.2250260659
A64: 60 | B64: 3600 | C64: 0.3567701492 | D64: 0.3541124068 | E64: =1-EXP(-((A64/Calculations!$C$13)^Calculations!$C$12)) -> 0.9919094452 | F64: =(1-(EXP(-(((A64)/Calculations!$C$13)^Calculations!$C$12))/EXP(-(((A64-1)/Calculations!$C$13)^Calculations!$C$12)))) -> 0.2330870203
A65: 61 | B65: 3721 | C65: 0.3726863382 | D65: 0.3699128689 | E65: =1-EXP(-((A65/Calculations!$C$13)^Calculations!$C$12)) -> 0.9938612848 | F65: =(1-(EXP(-(((A65)/Calculations!$C$13)^Calculations!$C$12))/EXP(-(((A65-1)/Calculations!$C$13)^Calculations!$C$12)))) -> 0.2412491686
A66: 62 | B66: 3844 | C66: 0.3887922527 | D66: 0.3859655625 | E66: =1-EXP(-((A66/Calculations!$C$13)^Calculations!$C$12)) -> 0.9953929471 | F66: =(1-(EXP(-(((A66)/Calculations!$C$13)^Calculations!$C$12))/EXP(-(((A66-1)/Calculations!$C$13)^Calculations!$C$12)))) -> 0.2495086119
A67: 63 | B67: 3969 | C67: 0.4050801378 | D67: 0.4022704874 | E67: =1-EXP(-((A67/Calculations!$C$13)^Calculations!$C$12)) -> 0.9965809281 | F67: =(1-(EXP(-(((A67)/Calculations!$C$13)^Calculations!$C$12))/EXP(-(((A67-1)/Calculations!$C$13)^Calculations!$C$12)))) -> 0.2578613735
A68: 64 | B68: 4096 | C68: 0.4215420961 | D68: 0.4188276436 | E68: =1-EXP(-((A68/Calculations!$C$13)^Calculations!$C$12)) -> 0.9974914386 | F68: =(1-(EXP(-(((A68)/Calculations!$C$13)^Calculations!$C$12))/EXP(-(((A68-1)/Calculations!$C$13)^Calculations!$C$12)))) -> 0.2663034034
A69: 65 | B69: 4225 | C69: 0.4381700964 | D69: 0.4356370312 | E69: =1-EXP(-((A69/Calculations!$C$13)^Calculations!$C$12)) -> 0.998180868 | F69: =(1-(EXP(-(((A69)/Calculations!$C$13)^Calculations!$C$12))/EXP(-(((A69-1)/Calculations!$C$13)^Calculations!$C$12)))) -> 0.274830583
A70: 66 | B70: 4356 | C70: 0.4549559835 | D70: 0.4526986502 | E70: =1-EXP(-((A70/Calculations!$C$13)^Calculations!$C$12)) -> 0.9986964804 | F70: =(1-(EXP(-(((A70)/Calculations!$C$13)^Calculations!$C$12))/EXP(-(((A70-1)/Calculations!$C$13)^Calculations!$C$12)))) -> 0.2834387303
A71: 67 | B71: 4489 | C71: 0.4718914878 | D71: 0.4700125005 | E71: =1-EXP(-((A71/Calculations!$C$13)^Calculations!$C$12)) -> 0.9990772693 | F71: =(1-(EXP(-(((A71)/Calculations!$C$13)^Calculations!$C$12))/EXP(-(((A71-1)/Calculations!$C$13)^Calculations!$C$12)))) -> 0.2921236043
A72: 68 | B72: 4624 | C72: 0.4889682349 | D72: 0.4875785822 | E72: =1-EXP(-((A72/Calculations!$C$13)^Calculations!$C$12)) -> 0.9993549013 | F72: =(1-(EXP(-(((A72)/Calculations!$C$13)^Calculations!$C$12))/EXP(-(((A72-1)/Calculations!$C$13)^Calculations!$C$12)))) -> 0.3008809105
A73: 69 | B73: 4761 | C73: 0.5061777555 | D73: 0.5053968953 | E73: =1-EXP(-((A73/Calculations!$C$13)^Calculations!$C$12)) -> 0.9995546925 | F73: =(1-(EXP(-(((A73)/Calculations!$C$13)^Calculations!$C$12))/EXP(-(((A73-1)/Calculations!$C$13)^Calculations!$C$12)))) -> 0.3097063056
A74: 70 | B74: 4900 | C74: 0.5235114954 | D74: 0.5234674397 | E74: =1-EXP(-((A74/Calculations!$C$13)^Calculations!$C$12)) -> 0.9996965654 | F74: =(1-(EXP(-(((A74)/Calculations!$C$13)^Calculations!$C$12))/EXP(-(((A74-1)/Calculations!$C$13)^Calculations!$C$12)))) -> 0.318595403
A75: 71 | B75: 5041 | C75: 0.5409608255 | D75: 0.5417902155 | E75: =1-EXP(-((A75/Calculations!$C$13)^Calculations!$C$12)) -> 0.9997959535 | F75: =(1-(EXP(-(((A75)/Calculations!$C$13)^Calculations!$C$12))/EXP(-(((A75-1)/Calculations!$C$13)^Calculations!$C$12)))) -> 0.3275437774
A76: 72 | B76: 5184 | C76: 0.5585170518 | D76: 0.5603652226 | E76: =1-EXP(-((A76/Calculations!$C$13)^Calculations!$C$12)) -> 0.9998646247 | F76: =(1-(EXP(-(((A76)/Calculations!$C$13)^Calculations!$C$12))/EXP(-(((A76-1)/Calculations!$C$13)^Calculations!$C$12)))) -> 0.3365469704
A77: 73 | B77: 5329 | C77: 0.5761714256 | D77: 0.5791924612 | E77: =1-EXP(-((A77/Calculations!$C$13)^Calculations!$C$12)) -> 0.9999114105 | F77: =(1-(EXP(-(((A77)/Calculations!$C$13)^Calculations!$C$12))/EXP(-(((A77-1)/Calculations!$C$13)^Calculations!$C$12)))) -> 0.3456004954
A78: 74 | B78: 5476 | C78: 0.5939151537 | D78: 0.598271931 | E78: =1-EXP(-((A78/Calculations!$C$13)^Calculations!$C$12)) -> 0.9999428332 | F78: =(1-(EXP(-(((A78)/Calculations!$C$13)^Calculations!$C$12))/EXP(-(((A78-1)/Calculations!$C$13)^Calculations!$C$12)))) -> 0.3546998432
A79: 75 | B79: 5625 | C79: 0.6117394082 | D79: 0.6176036323 | E79: =1-EXP(-((A79/Calculations!$C$13)^Calculations!$C$12)) -> 0.9999636328 | F79: =(1-(EXP(-(((A79)/Calculations!$C$13)^Calculations!$C$12))/EXP(-(((A79-1)/Calculations!$C$13)^Calculations!$C$12)))) -> 0.3638404865
A81: Simulation Results by Year
B82: Agency | E82: Total
A83: Age | B83: Avg. Cost | C83: Disc. Cost | D83: Cum. Cost | E83: Avg. Cost | F83: Disc. Cost | G83: Cum. Cost
A84: 0 | B84: =AVERAGE(B393:IQ393,B802:IQ802) -> 1 | C84: =B84/(1+$C$6)^A84 -> 1 | D84: =C84 -> 1 | E84: =AVERAGE(B495:IQ495,B904:IQ904) -> 1 | F84: =E84/(1+$C$6)^A84 -> 1 | G84: =F84 -> 1
A85: =A84+1 -> 1 | B85: 0.05 | C85: =B85/(1+$C$6)^A85 -> 0.04672897196 | D85: =D84+C85 -> 1.046728972 | E85: 0.05 | F85: =E85/(1+$C$6)^A85 -> 0.04672897196 | G85: =G84+F85 -> 1.046728972
A86: =A85+1 -> 2 | B86: 0.05 | C86: 0.04367193641 | D86: =D85+C86 -> 1.090400908 | E86: 0.05 | F86: =E86/(1+$C$6)^A86 -> 0.04367193641 | G86: =G85+F86 -> 1.090400908
A87: 3 | B87: 0.05 | C87: 0.04081489384 | D87: 1.131215802 | E87: 0.05 | F87: =E87/(1+$C$6)^A87 -> 0.04081489384 | G87: 1.131215802
A88: 4 | B88: 0.05 | C88: 0.0381447606 | D88: 1.169360563 | E88: 0.05 | F88: =E88/(1+$C$6)^A88 -> 0.0381447606 | G88: 1.169360563
A89: =A88+1 -> 5 | B89: 0.05 | C89: 0.03564930897 | D89: =D88+C89 -> 1.205009872 | E89: 0.05 | F89: =E89/(1+$C$6)^A89 -> 0.03564930897 | G89: 1.205009872
A90: 6 | B90: 0.05 | C90: 0.03331711119 | D90: 1.238326983 | E90: 0.05 | F90: 0.03331711119 | G90: 1.238326983
A91: 7 | B91: 0.0529 | C91: 0.03294346135 | D91: 1.271270444 | E91: 0.0559 | F91: 0.03481171057 | G91: 1.273138694
A92: 8 | B92: 0.05 | C92: 0.02910045523 | D92: 1.3003709 | E92: 0.05 | F92: 0.02910045523 | G92: 1.302239149
A93: 9 | B93: 0.0558 | C93: 0.03035150284 | D93: 1.330722402 | E93: 0.0618 | F93: 0.03361510529 | G93: 1.335854254
A94: 10 | B94: 0.05 | C94: 0.02541746461 | D94: 1.356139867 | E94: 0.05 | F94: 0.02541746461 | G94: 1.361271719
A95: 11 | B95: 0.0529 | C95: 0.02513240893 | D95: 1.381272276 | E95: 0.0559 | F95: 0.02655768732 | G95: 1.387829406
A96: 12 | B96: 0.0529 | C96: 0.02348823264 | D96: 1.404760509 | E96: 0.0559 | F96: 0.02482026852 | G96: 1.412649675
A97: 13 | B97: 0.0645 | C97: 0.02676520689 | D97: 1.431525715 | E97: 0.0795 | F97: 0.03298967361 | G97: 1.445639348
A98: 14 | B98: 0.0674 | C98: 0.02613888204 | D98: 1.457664598 | E98: 0.0854 | F98: 0.03311959238 | G98: 1.478758941
A99: 15 | B99: 0.0674 | C99: 0.02442886172 | D99: 1.482093459 | E99: 0.0854 | F99: 0.03095289008 | G99: 1.509711831
A100: 16 | B100: 0.0703 | C100: 0.02381304223 | D100: 1.505906501 | E100: 0.0913 | F100: 0.03092646878 | G100: 1.540638299
A101: 17 | B101: 0.0732 | C101: 0.02317324538 | D101: 1.529079747 | E101: 0.0972 | F101: 0.03077103075 | G101: 1.57140933
A102: 18 | B102: 0.0674 | C102: 0.01994122796 | D102: 1.549020975 | E102: 0.0854 | F102: 0.02526677845 | G102: 1.596676109
A103: 19 | B103: 0.0645 | C103: 0.01783478748 | D103: 1.566855762 | E103: 0.0795 | F103: 0.02198241247 | G103: 1.618658521
A104: 20 | B104: 0.0616 | C104: 0.01591861057 | D104: 1.582774373 | E104: 0.0736 | F104: 0.01901963861 | G104: 1.63767816
A105: 21 | B105: 0.0906 | C105: 0.02188108566 | D105: 1.604655459 | E105: 0.1326 | F105: 0.0320246353 | G105: 1.669702795
A106: 22 | B106: 0.0819 | C106: 0.01848590823 | D106: 1.623141367 | E106: 0.1149 | F106: 0.02593444268 | G106: 1.695637238
A107: 23 | B107: 0.079 | C107: 0.01666480378 | D107: 1.639806171 | E107: 0.109 | F107: 0.02299321028 | G107: 1.718630448
A108: 24 | B108: 0.0964 | C108: 0.01900493416 | D108: 1.658811105 | E108: 0.1444 | F108: 0.02846797192 | G108: 1.74709842
A109: 25 | B109: 0.0674 | C109: 0.01241839456 | D109: 1.671229499 | E109: 0.0854 | F109: 0.01573487976 | G109: 1.7628333
A110: 26 | B110: 0.0906 | C110: 0.01560091167 | D110: 1.686830411 | E110: 0.1326 | F110: 0.02283312237 | G110: 1.785666422
A111: 27 | B111: 0.0935 | C111: 0.01504698934 | D111: 1.7018774 | E111: 0.1385 | F111: 0.02228885587 | G111: 1.807955278
A112: 28 | B112: 0.1022 | C112: 0.01537110611 | D112: 1.717248506 | E112: 0.1562 | F112: 0.02349282558 | G112: 1.831448103
A113: 29 | B113: 0.1022 | C113: 0.01436551973 | D113: 1.731614026 | E113: 0.1562 | F113: 0.02195591176 | G113: 1.853404015
A114: 30 | B114: 0.0964 | C114: 0.01266379009 | D114: 1.744277816 | E114: 0.1444 | F114: 0.01896941172 | G114: 1.872373427
A115: 31 | B115: 0.1022 | C115: 0.01254740128 | D115: 1.756825217 | E115: 0.1562 | F115: 0.01917714364 | G115: 1.891550571
A116: 32 | B116: =AVERAGE(B425:IQ425,B834:IQ834) -> 0.108 | C116: 0.0123920418 | D116: 1.769217259 | E116: =AVERAGE(B527:IQ527,B936:IQ936) -> 0.168 | F116: =E116/(1+$C$6)^A116 -> 0.01927650946 | G116: 1.91082708
A117: 33 | B117: 0.0964 | C117: 0.01033742497 | D117: 1.779554684 | E117: 0.1444 | F117: 0.01548469051 | G117: 1.926311771
A118: 34 | B118: 0.1022 | C118: 0.01024241703 | D118: 1.789797101 | E118: 0.1562 | F118: 0.01565426164 | G118: 1.941966032
A119: 35 | B119: 0.5223 | C119: 0.04892015302 | D119: 1.838717254 | E119: 0.5313 | F119: 0.04976311947 | G119: 1.991729152
A120: 36 | B120: 0.0558 | C120: 0.0048844785 | D120: 1.843601733 | E120: 0.0618 | F120: 0.005409691241 | G120: 1.997138843
A121: 37 | B121: 0.0558 | C121: 0.004564933177 | D121: 1.848166666 | E121: 0.0618 | F121: 0.005055786207 | G121: 2.002194629
A122: 38 | B122: 0.0616 | C122: 0.004709742467 | D122: 1.852876408 | E122: 0.0736 | F122: 0.005627224765 | G122: 2.007821854
A123: 39 | B123: 0.0587 | C123: 0.004194408951 | D123: 1.857070817 | E123: 0.0677 | F123: 0.00483750402 | G123: 2.012659358
A124: 40 | B124: 0.0529 | C124: 0.003532682156 | D124: 1.8606035 | E124: 0.0559 | F124: 0.003733023299 | G124: 2.016392381
A125: 41 | B125: 0.0529 | C125: 0.003301572108 | D125: 1.863905072 | E125: 0.0559 | F125: 0.003488806821 | G125: 2.019881188
A126: 42 | B126: 0.0577 | C126: 0.003365558551 | D126: 1.86727063 | E126: 0.0637 | F126: 0.003715529977 | G126: 2.023596718
A127: 43 | B127: 0.0703 | C127: 0.003832241632 | D127: 1.871102872 | E127: 0.0913 | F127: 0.00497700798 | G127: 2.028573726
A128: 44 | B128: 0.0577 | C128: 0.00293960918 | D128: 1.874042481 | E128: 0.0637 | F128: 0.003245287778 | G128: 2.031819014
A129: 45 | B129: 0.0558 | C129: 0.002656832671 | D129: 1.876699314 | E129: 0.0618 | F129: 0.002942513603 | G129: 2.034761527
A130: 46 | B130: 0.0664 | C130: 0.002954706216 | D130: 1.87965402 | E130: 0.0814 | F130: 0.00362218503 | G130: 2.038383712
A131: 47 | B131: 0.0722 | C131: 0.003002614976 | D131: 1.882656635 | E131: 0.0932 | F131: 0.003875951742 | G131: 2.042259664
A132: 48 | B132: 0.0789 | C132: 0.003066589712 | D132: 1.885723225 | E132: 0.1029 | F132: 0.003999392666 | G132: 2.046259057
A133: 49 | B133: 0.0934 | C133: 0.003392671181 | D133: 1.889115896 | E133: 0.1324 | F133: 0.004809311181 | G133: 2.051068368
A134: 50 | B134: 0.0741 | C134: 0.002515528973 | D134: 1.891631425 | E134: 0.0951 | F134: 0.003228431921 | G134: =G133+F134 -> 2.0542968
A135: 51 | B135: 0.0924 | C135: 0.002931563524 | D135: 1.894562988 | E135: 0.1284 | F135: 0.00407373113 | G135: 2.058370531
A136: 52 | B136: 0.0624 | C136: 0.00185024036 | D136: 1.896413229 | E136: 0.0654 | F136: 0.001939194223 | G136: 2.060309725
A137: 53 | B137: 0.0741 | C137: 0.00205342096 | D137: 1.89846665 | E137: 0.0951 | F137: 0.002635362122 | G137: 2.062945087
A138: 54 | B138: 0.0789 | C138: 0.002043398208 | D138: 1.900510048 | E138: 0.1029 | F138: 0.002664964203 | G138: 2.065610052
A139: 55 | B139: 0.0799 | C139: 0.001933922235 | D139: 1.90244397 | E139: 0.1069 | F139: 0.002587437884 | G139: 2.068197489
A140: 56 | B140: 0.1039 | C140: 0.00235030377 | D140: 1.904794274 | E140: 0.1459 | F140: 0.003300378441 | G140: 2.071497868
A141: 57 | B141: 0.0914 | C141: 0.001932283599 | D141: 1.906726557 | E141: 0.1244 | F141: 0.002629935227 | G141: 2.074127803
A142: 58 | B142: 0.074 | C142: 0.001462084974 | D142: 1.908188642 | E142: 0.089 | F142: 0.00175845355 | G142: 2.075886257
A143: 59 | B143: 0.0913 | C143: 0.001685884796 | D143: 1.909874527 | E143: 0.1183 | F143: 0.002184448756 | G143: 2.078070705
A144: 60 | B144: 0.0819 | C144: 0.001413374465 | D144: 1.911287902 | E144: 0.1149 | F144: 0.001982866007 | G144: 2.080053571
A145: 61 | B145: 0.0953 | C145: 0.001537030416 | D145: 1.912824932 | E145: 0.1343 | F145: 0.002166035518 | G145: 2.082219607
A146: 62 | B146: 0.0962 | C146: 0.001450042915 | D146: 1.914274975 | E146: 0.1322 | F146: 0.001992678517 | G146: 2.084212285
A147: 63 | B147: 0.0999 | C147: 0.001407302613 | D147: 1.915682278 | E147: 0.1299 | F147: 0.00182991601 | G147: 2.086042201
A148: 64 | B148: =AVERAGE(B457:IQ457,B866:IQ866) -> 0.1183 | C148: 0.001557481773 | D148: 1.917239759 | E148: =AVERAGE(B559:IQ559,B968:IQ968) -> 0.1693 | F148: =E148/(1+$C$6)^A148 -> 0.002228923619 | G148: 2.088271125
A149: 65 | B149: 0.1067 | C149: =B149/(1+$C$6)^A149 -> 0.001312861371 | D149: 1.918552621 | E149: 0.1457 | F149: 0.001792726351 | G149: 2.090063851
A150: =A149+1 -> 66 | B150: 0.0941 | C150: 0.001082082308 | D150: =D149+C150 -> 1.919634703 | E150: 0.1181 | F150: 0.001358065043 | G150: =G149+F150 -> 2.091421916
A151: 67 | B151: 0.0989 | C151: 0.001062877434 | D151: 1.92069758 | E151: 0.1259 | F151: 0.001353046198 | G151: 2.092774963
A152: 68 | B152: 0.077 | C152: 0.000773381613 | D152: 1.921470962 | E152: 0.101 | F152: 0.001014435622 | G152: 2.093789398
A153: 69 | B153: 0.1125 | C153: 0.001056019316 | D153: 1.922526981 | E153: 0.1575 | F153: 0.001478427043 | G153: 2.095267825
A154: 70 | B154: 0.3009 | C154: 0.002639719312 | D154: 1.925166701 | E154: 0.3069 | F154: 0.002692355789 | G154: 2.097960181
A155: 71 | B155: 0.0606 | C155: 0.0004968489868 | D155: 1.92566355 | E155: 0.0696 | F155: 0.0005706384403 | G155: 2.09853082
A156: 72 | B156: 0.0683 | C156: 0.0005233457604 | D156: 1.926186895 | E156: 0.0833 | F156: 0.0006382826039 | G156: 2.099169102
A157: 73 | B157: 0.0615 | C157: 0.0004404122038 | D157: 1.926627308 | E157: 0.0675 | F157: 0.0004833792481 | G157: 2.099652481
A158: 74 | B158: 0.0809 | C158: 0.0005414382993 | D158: 1.927168746 | E158: 0.1109 | F158: 0.0007422188801 | G158: 2.1003947
A159: 75 | B159: 0.0674 | C159: 0.000421576671 | D159: 1.927590323 | E159: 0.0854 | F159: 0.0005341639126 | G159: 2.100928864
A160: 76 | B160: 0.0548 | C160: 0.0003203416841 | D160: 1.927910664 | E160: 0.0578 | F160: 0.0003378786376 | G160: 2.101266743
A161: 77 | B161: 0.0654 | C161: 0.0003572949406 | D161: 1.928267959 | E161: 0.0774 | F161: 0.0004228536453 | G161: 2.101689596
A162: 78 | B162: 0.073 | C162: 0.000372724723 | D162: 1.928640684 | E162: 0.085 | F162: 0.0004339945405 | G162: 2.102123591
A163: 79 | B163: 0.0645 | C163: 0.0003077806252 | D163: 1.928948465 | E163: 0.0795 | F163: 0.0003793575148 | G163: 2.102502949
A164: 80 | B164: 0.0761 | C164: 0.0003393770279 | D164: 1.929287842 | E164: 0.1031 | F164: 0.0004597867486 | G164: 2.102962735
A165: 81 | B165: 0.0789 | C165: 0.0003288448242 | D165: 1.929616686 | E165: 0.1029 | F165: 0.000428873668 | G165: 2.103391609
A166: 82 | B166: 0.0837 | C166: 0.0003260285915 | D166: 1.929942715 | E166: 0.1107 | F166: 0.0004311991049 | G166: 2.103822808
A167: 83 | B167: 0.0721 | C167: 0.0002624712363 | D167: 1.930205186 | E167: 0.0871 | F167: 0.0003170769026 | G167: 2.104139885
A168: 84 | B168: 0.0941 | C168: 0.0003201491093 | D168: 1.930525335 | E168: 0.1181 | F168: 0.0004018024421 | G168: 2.104541687
A169: 85 | B169: 0.0875 | C169: 0.0002782191054 | D169: 1.930803554 | E169: 0.1145 | F169: 0.0003640695722 | G169: 2.104905757
A170: 86 | B170: 0.0932 | C170: 0.0002769561615 | D170: 1.931080511 | E170: 0.1202 | F170: 0.0003571902426 | G170: 2.105262947
A171: 87 | B171: 0.0789 | C171: 0.0002191231914 | D171: 1.931299634 | E171: 0.1029 | F171: 0.0002857766337 | G171: 2.105548724
A172: 88 | B172: 0.0828 | C172: 0.0002149106316 | D172: 1.931514544 | E172: 0.1128 | F172: 0.0002927768025 | G172: 2.105841501
A173: 89 | B173: 0.101 | C173: 0.0002449994784 | D173: 1.931759544 | E173: 0.14 | F173: 0.0003396032374 | G173: 2.106181104
A174: 90 | B174: 0.0981 | C174: 0.0002223970467 | D174: 1.931981941 | E174: 0.1341 | F174: 0.0003040106418 | G174: 2.106485115
A175: 91 | B175: 0.0855 | C175: 0.0001811516714 | D175: 1.932163093 | E175: 0.1065 | F175: 0.0002256450644 | G175: 2.10671076
A176: 92 | B176: 0.0894 | C176: 0.0001770231122 | D176: 1.932340116 | E176: 0.1164 | F176: 0.0002304864683 | G176: 2.106941246
A177: 93 | B177: 0.075 | C177: 0.0001387937592 | D177: 1.93247891 | E177: 0.093 | F177: 0.0001721042614 | G177: 2.10711335
A178: 94 | B178: 0.0768 | C178: 0.0001328269247 | D178: 1.932611736 | E178: 0.0888 | F178: 0.0001535811317 | G178: 2.107266931
A179: 95 | B179: 0.0817 | C179: 0.000132057532 | D179: 1.932743794 | E179: 0.1027 | F179: 0.0001660013284 | G179: 2.107432933
A180: 96 | B180: =AVERAGE(B489:IQ489,B898:IQ898) -> 0.0961 | C180: 0.000145171288 | D180: 1.932888965 | E180: =AVERAGE(B591:IQ591,B1000:IQ1000) -> 0.1261 | F180: =E180/(1+$C$6)^A180 -> 0.0001904901083 | G180: 2.107623423
A181: 97 | B181: 0.0825 | C181: 0.0001164736038 | D181: 1.933005439 | E181: 0.0945 | F181: =E181/(1+$C$6)^A181 -> 0.0001334152189 | G181: 2.107756838
A182: 98 | B182: 0.0863 | C182: 0.0001138677089 | D182: 1.933119307 | E182: 0.0983 | F182: =E182/(1+$C$6)^A182 -> 0.0001297009941 | G182: 2.107886539
A183: 99 | B183: 0.1134 | C183: 0.0001398360229 | D183: 1.933259143 | E183: 0.1554 | F183: =E183/(1+$C$6)^A183 -> 0.0001916271425 | G183: 2.108078166
A184: 100 | B184: 0.123 | C184: 0.0001417513954 | D184: 1.933400894 | E184: 0.171 | F184: =E184/(1+$C$6)^A184 -> 0.0001970690132 | G184: 2.108275235
A186: Trial Data
A187: Trial | B187: 1 | C187: =B187+1 -> 2 | D187: =C187+1 -> 3 | E187: 4 | F187: 5 | G187: 6 | H187: 7 | I187: 8 | J187: 9 | K187: 10 | L187: 11 | M187: 12 | N187: 13 | O187: 14 | P187: 15 | Q187: 16 | R187: 17 | S187: 18 | T187: 19 | U187: 20 | V187: 21 | W187: 22 | X187: 23 | Y187: 24 | Z187: 25 | AA187: 26 | AB187: 27 | AC187: 28 | AD187: 29 | AE187: 30 | AF187: 31 | AG187: 32 | AH187: 33 | AI187: 34 | AJ187: 35 | AK187: 36 | AL187: 37 | AM187: 38 | AN187: 39 | AO187: 40 | AP187: 41 | AQ187: 42 | AR187: 43 | AS187: 44 | AT187: 45 | AU187: 46 | AV187: 47 | AW187: 48 | AX187: 49 | AY187: 50 | AZ187: 51 | BA187: 52 | BB187: 53 | BC187: 54 | BD187: 55 | BE187: 56 | BF187: 57 | BG187: 58 | BH187: 59 | BI187: 60 | BJ187: 61 | BK187: 62 | BL187: 63 | BM187: 64 | BN187: 65 | BO187: 66 | BP187: =BO187+1 -> 67 | BQ187: 68 | BR187: 69 | BS187: 70 | BT187: 71 | BU187: 72 | BV187: 73 | BW187: 74 | BX187: 75 | BY187: 76 | BZ187: 77 | CA187: 78 | CB187: 79 | CC187: 80 | CD187: 81 | CE187: 82 | CF187: 83 | CG187: 84 | CH187: 85 | CI187: 86 | CJ187: 87 | CK187: 88 | CL187: 89 | CM187: 90 | CN187: 91 | CO187: 92 | CP187: 93 | CQ187: 94 | CR187: 95 | CS187: 96 | CT187: 97 | CU187: 98 | CV187: 99 | CW187: 100 | CX187: =CW187+1 -> 101 | CY187: 102 | CZ187: 103 | DA187: 104 | DB187: 105 | DC187: 106 | DD187: 107 | DE187: 108 | DF187: 109 | DG187: 110 | DH187: 111 | DI187: 112 | DJ187: 113 | DK187: 114 | DL187: 115 | DM187: 116 | DN187: 117 | DO187: 118 | DP187: 119 | DQ187: 120 | DR187: 121 | DS187: 122 | DT187: 123 | DU187: 124 | DV187: 125 | DW187: 126 | DX187: 127 | DY187: 128 | DZ187: 129 | EA187: 130 | EB187: 131 | EC187: 132 | ED187: 133 | EE187: 134 | EF187: 135 | EG187: 136 | EH187: 137 | EI187: 138 | EJ187: 139 | EK187: 140 | EL187: 141 | EM187: 142 | EN187: 143 | EO187: 144 | EP187: 145 | EQ187: 146 | ER187: 147 | ES187: 148 | ET187: 149 | EU187: 150 | EV187: 151 | EW187: 152 | EX187: 153 | EY187: 154 | EZ187: 155 | FA187: 156 | FB187: 157 | FC187: 158 | FD187: 159 | FE187: 160 | FF187: 161 | FG187: 162 | FH187: 163 | FI187: 164 | FJ187: =FI187+1 -> 165 | FK187: 166 | FL187: 167 | FM187: 168 | FN187: 169 | FO187: 170 | FP187: 171 | FQ187: 172 | FR187: 173 | FS187: 174 | FT187: 175 | FU187: 176 | FV187: 177 | FW187: 178 | FX187: 179 | FY187: 180 | FZ187: 181 | GA187: 182 | GB187: 183 | GC187: 184 | GD187: 185 | GE187: 186 | GF187: 187 | GG187: 188 | GH187: 189 | GI187: 190 | GJ187: 191 | GK187: 192 | GL187: 193 | GM187: 194 | GN187: 195 | GO187: 196 | GP187: 197 | GQ187: 198 | GR187: 199 | GS187: 200 | GT187: =GS187+1 -> 201 | GU187: 202 | GV187: 203 | GW187: 204 | GX187: 205 | GY187: 206 | GZ187: 207 | HA187: 208 | HB187: 209 | HC187: 210 | HD187: 211 | HE187: 212 | HF187: 213 | HG187: 214 | HH187: 215 | HI187: 216 | HJ187: 217 | HK187: 218 | HL187: 219 | HM187: 220 | HN187: 221 | HO187: 222 | HP187: 223 | HQ187: 224 | HR187: 225 | HS187: 226 | HT187: 227 | HU187: 228 | HV187: 229 | HW187: 230 | HX187: 231 | HY187: 232 | HZ187: 233 | IA187: 234 | IB187: 235 | IC187: 236 | ID187: 237 | IE187: 238 | IF187: 239 | IG187: 240 | IH187: 241 | II187: 242 | IJ187: 243 | IK187: 244 | IL187: 245 | IM187: 246 | IN187: 247 | IO187: 248 | IP187: 249 | IQ187: 250
A188: Age by Period
A189: 0 | B189: 0 | C189: 0 | D189: 0 | E189: 0 | F189: 0 | G189: 0 | H189: 0 | I189: 0 | J189: 0 | K189: 0 | L189: 0 | M189: 0 | N189: 0 | O189: 0 | P189: 0 | Q189: 0 | R189: 0 | S189: 0 | T189: 0 | U189: 0 | V189: 0 | W189: 0 | X189: 0 | Y189: 0 | Z189: 0 | AA189: 0 | AB189: 0 | AC189: 0 | AD189: 0 | AE189: 0 | AF189: 0 | AG189: 0 | AH189: 0 | AI189: 0 | AJ189: 0 | AK189: 0 | AL189: 0 | AM189: 0 | AN189: 0 | AO189: 0 | AP189: 0 | AQ189: 0 | AR189: 0 | AS189: 0 | AT189: 0 | AU189: 0 | AV189: 0 | AW189: 0 | AX189: 0 | AY189: 0 | AZ189: 0 | BA189: 0 | BB189: 0 | BC189: 0 | BD189: 0 | BE189: 0 | BF189: 0 | BG189: 0 | BH189: 0 | BI189: 0 | BJ189: 0 | BK189: 0 | BL189: 0 | BM189: 0 | BN189: 0 | BO189: 0 | BP189: 0 | BQ189: 0 | BR189: 0 | BS189: 0 | BT189: 0 | BU189: 0 | BV189: 0 | BW189: 0 | BX189: 0 | BY189: 0 | BZ189: 0 | CA189: 0 | CB189: 0 | CC189: 0 | CD189: 0 | CE189: 0 | CF189: 0 | CG189: 0 | CH189: 0 | CI189: 0 | CJ189: 0 | CK189: 0 | CL189: 0 | CM189: 0 | CN189: 0 | CO189: 0 | CP189: 0 | CQ189: 0 | CR189: 0 | CS189: 0 | CT189: 0 | CU189: 0 | CV189: 0 | CW189: 0 | CX189: 0 | CY189: 0 | CZ189: 0 | DA189: 0 | DB189: 0 | DC189: 0 | DD189: 0 | DE189: 0 | DF189: 0 | DG189: 0 | DH189: 0 | DI189: 0 | DJ189: 0 | DK189: 0 | DL189: 0 | DM189: 0 | DN189: 0 | DO189: 0 | DP189: 0 | DQ189: 0 | DR189: 0 | DS189: 0 | DT189: 0 | DU189: 0 | DV189: 0 | DW189: 0 | DX189: 0 | DY189: 0 | DZ189: 0 | EA189: 0 | EB189: 0 | EC189: 0 | ED189: 0 | EE189: 0 | EF189: 0 | EG189: 0 | EH189: 0 | EI189: 0 | EJ189: 0 | EK189: 0 | EL189: 0 | EM189: 0 | EN189: 0 | EO189: 0 | EP189: 0 | EQ189: 0 | ER189: 0 | ES189: 0 | ET189: 0 | EU189: 0 | EV189: 0 | EW189: 0 | EX189: 0 | EY189: 0 | EZ189: 0 | FA189: 0 | FB189: 0 | FC189: 0 | FD189: 0 | FE189: 0 | FF189: 0 | FG189: 0 | FH189: 0 | FI189: 0 | FJ189: 0 | FK189: 0 | FL189: 0 | FM189: 0 | FN189: 0 | FO189: 0 | FP189: 0 | FQ189: 0 | FR189: 0 | FS189: 0 | FT189: 0 | FU189: 0 | FV189: 0 | FW189: 0 | FX189: 0 | FY189: 0 | FZ189: 0 | GA189: 0 | GB189: 0 | GC189: 0 | GD189: 0 | GE189: 0 | GF189: 0 | GG189: 0 | GH189: 0 | GI189: 0 | GJ189: 0 | GK189: 0 | GL189: 0 | GM189: 0 | GN189: 0 | GO189: 0 | GP189: 0 | GQ189: 0 | GR189: 0 | GS189: 0 | GT189: 0 | GU189: 0 | GV189: 0 | GW189: 0 | GX189: 0 | GY189: 0 | GZ189: 0 | HA189: 0 | HB189: 0 | HC189: 0 | HD189: 0 | HE189: 0 | HF189: 0 | HG189: 0 | HH189: 0 | HI189: 0 | HJ189: 0 | HK189: 0 | HL189: 0 | HM189: 0 | HN189: 0 | HO189: 0 | HP189: 0 | HQ189: 0 | HR189: 0 | HS189: 0 | HT189: 0 | HU189: 0 | HV189: 0 | HW189: 0 | HX189: 0 | HY189: 0 | HZ189: 0 | IA189: 0 | IB189: 0 | IC189: 0 | ID189: 0 | IE189: 0 | IF189: 0 | IG189: 0 | IH189: 0 | II189: 0 | IJ189: 0 | IK189: 0 | IL189: 0 | IM189: 0 | IN189: 0 | IO189: 0 | IP189: 0 | IQ189: 0
A190: =A189+1 -> 1 | B190: =IF(B291="Y",1,IF(B189=$C$14-1,0,B189+1)) -> 1 | C190: 1 | D190: 1 | E190: 1 | F190: 1 | G190: 1 | H190: 1 | I190: 1 | J190: 1 | K190: 1 | L190: 1 | M190: 1 | N190: 1 | O190: 1 | P190: 1 | Q190: 1 | R190: 1 | S190: 1 | T190: 1 | U190: 1 | V190: 1 | W190: 1 | X190: 1 | Y190: 1 | Z190: 1 | AA190: 1 | AB190: 1 | AC190: 1 | AD190: 1 | AE190: 1 | AF190: 1 | AG190: 1 | AH190: 1 | AI190: 1 | AJ190: 1 | AK190: 1 | AL190: 1 | AM190: 1 | AN190: 1 | AO190: 1 | AP190: 1 | AQ190: 1 | AR190: 1 | AS190: 1 | AT190: 1 | AU190: 1 | AV190: 1 | AW190: 1 | AX190: 1 | AY190: 1 | AZ190: 1 | BA190: 1 | BB190: 1 | BC190: 1 | BD190: 1 | BE190: 1 | BF190: 1 | BG190: 1 | BH190: 1 | BI190: 1 | BJ190: 1 | BK190: 1 | BL190: 1 | BM190: 1 | BN190: =IF(BN291="Y",1,IF(BN189=$C$14-1,0,BN189+1)) -> 1 | BO190: 1 | BP190: 1 | BQ190: 1 | BR190: 1 | BS190: 1 | BT190: 1 | BU190: 1 | BV190: 1 | BW190: 1 | BX190: 1 | BY190: 1 | BZ190: 1 | CA190: 1 | CB190: 1 | CC190: 1 | CD190: 1 | CE190: 1 | CF190: 1 | CG190: 1 | CH190: 1 | CI190: 1 | CJ190: 1 | CK190: 1 | CL190: 1 | CM190: 1 | CN190: 1 | CO190: 1 | CP190: 1 | CQ190: 1 | CR190: 1 | CS190: 1 | CT190: 1 | CU190: 1 | CV190: 1 | CW190: 1 | CX190: 1 | CY190: 1 | CZ190: 1 | DA190: 1 | DB190: 1 | DC190: 1 | DD190: 1 | DE190: 1 | DF190: 1 | DG190: 1 | DH190: 1 | DI190: 1 | DJ190: 1 | DK190: 1 | DL190: 1 | DM190: 1 | DN190: 1 | DO190: 1 | DP190: 1 | DQ190: 1 | DR190: 1 | DS190: 1 | DT190: 1 | DU190: 1 | DV190: 1 | DW190: 1 | DX190: 1 | DY190: 1 | DZ190: =IF(DZ291="Y",1,IF(DZ189=$C$14-1,0,DZ189+1)) -> 1 | EA190: 1 | EB190: 1 | EC190: 1 | ED190: 1 | EE190: 1 | EF190: 1 | EG190: 1 | EH190: 1 | EI190: 1 | EJ190: 1 | EK190: 1 | EL190: 1 | EM190: 1 | EN190: 1 | EO190: 1 | EP190: 1 | EQ190: 1 | ER190: 1 | ES190: 1 | ET190: 1 | EU190: 1 | EV190: 1 | EW190: 1 | EX190: 1 | EY190: 1 | EZ190: 1 | FA190: 1 | FB190: 1 | FC190: 1 | FD190: 1 | FE190: 1 | FF190: 1 | FG190: 1 | FH190: 1 | FI190: 1 | FJ190: 1 | FK190: 1 | FL190: 1 | FM190: 1 | FN190: 1 | FO190: 1 | FP190: 1 | FQ190: 1 | FR190: 1 | FS190: 1 | FT190: 1 | FU190: 1 | FV190: 1 | FW190: 1 | FX190: 1 | FY190: 1 | FZ190: 1 | GA190: 1 | GB190: 1 | GC190: 1 | GD190: 1 | GE190: 1 | GF190: 1 | GG190: 1 | GH190: 1 | GI190: 1 | GJ190: 1 | GK190: 1 | GL190: =IF(GL291="Y",1,IF(GL189=$C$14-1,0,GL189+1)) -> 1 | GM190: 1 | GN190: 1 | GO190: 1 | GP190: 1 | GQ190: 1 | GR190: 1 | GS190: 1 | GT190: 1 | GU190: 1 | GV190: 1 | GW190: 1 | GX190: 1 | GY190: 1 | GZ190: 1 | HA190: 1 | HB190: 1 | HC190: 1 | HD190: 1 | HE190: 1 | HF190: 1 | HG190: 1 | HH190: 1 | HI190: 1 | HJ190: 1 | HK190: 1 | HL190: 1 | HM190: 1 | HN190: 1 | HO190: 1 | HP190: 1 | HQ190: 1 | HR190: 1 | HS190: 1 | HT190: 1 | HU190: 1 | HV190: 1 | HW190: 1 | HX190: 1 | HY190: 1 | HZ190: 1 | IA190: 1 | IB190: 1 | IC190: 1 | ID190: 1 | IE190: 1 | IF190: 1 | IG190: 1 | IH190: 1 | II190: 1 | IJ190: 1 | IK190: 1 | IL190: 1 | IM190: 1 | IN190: 1 | IO190: 1 | IP190: 1 | IQ190: 1
A191: =A190+1 -> 2 | B191: =IF(B292="Y",1,IF(B190=$C$14-1,0,B190+1)) -> 2 | C191: =IF(C292="Y",1,IF(C190=$C$14-1,0,C190+1)) -> 2 | D191: =IF(D292="Y",1,IF(D190=$C$14-1,0,D190+1)) -> 2 | E191: =IF(E292="Y",1,IF(E190=$C$14-1,0,E190+1)) -> 2 | F191: =IF(F292="Y",1,IF(F190=$C$14-1,0,F190+1)) -> 2 | G191: =IF(G292="Y",1,IF(G190=$C$14-1,0,G190+1)) -> 2 | H191: =IF(H292="Y",1,IF(H190=$C$14-1,0,H190+1)) -> 2 | I191: =IF(I292="Y",1,IF(I190=$C$14-1,0,I190+1)) -> 2 | J191: =IF(J292="Y",1,IF(J190=$C$14-1,0,J190+1)) -> 2 | K191: =IF(K292="Y",1,IF(K190=$C$14-1,0,K190+1)) -> 2 | L191: =IF(L292="Y",1,IF(L190=$C$14-1,0,L190+1)) -> 2 | M191: =IF(M292="Y",1,IF(M190=$C$14-1,0,M190+1)) -> 2 | N191: =IF(N292="Y",1,IF(N190=$C$14-1,0,N190+1)) -> 2 | O191: =IF(O292="Y",1,IF(O190=$C$14-1,0,O190+1)) -> 2 | P191: =IF(P292="Y",1,IF(P190=$C$14-1,0,P190+1)) -> 2 | Q191: =IF(Q292="Y",1,IF(Q190=$C$14-1,0,Q190+1)) -> 2 | R191: =IF(R292="Y",1,IF(R190=$C$14-1,0,R190+1)) -> 2 | S191: =IF(S292="Y",1,IF(S190=$C$14-1,0,S190+1)) -> 2 | T191: =IF(T292="Y",1,IF(T190=$C$14-1,0,T190+1)) -> 2 | U191: =IF(U292="Y",1,IF(U190=$C$14-1,0,U190+1)) -> 2 | V191: =IF(V292="Y",1,IF(V190=$C$14-1,0,V190+1)) -> 2 | W191: =IF(W292="Y",1,IF(W190=$C$14-1,0,W190+1)) -> 2 | X191: =IF(X292="Y",1,IF(X190=$C$14-1,0,X190+1)) -> 2 | Y191: =IF(Y292="Y",1,IF(Y190=$C$14-1,0,Y190+1)) -> 2 | Z191: =IF(Z292="Y",1,IF(Z190=$C$14-1,0,Z190+1)) -> 2 | AA191: =IF(AA292="Y",1,IF(AA190=$C$14-1,0,AA190+1)) -> 2 | AB191: =IF(AB292="Y",1,IF(AB190=$C$14-1,0,AB190+1)) -> 2 | AC191: =IF(AC292="Y",1,IF(AC190=$C$14-1,0,AC190+1)) -> 2 | AD191: =IF(AD292="Y",1,IF(AD190=$C$14-1,0,AD190+1)) -> 2 | AE191: =IF(AE292="Y",1,IF(AE190=$C$14-1,0,AE190+1)) -> 2 | AF191: =IF(AF292="Y",1,IF(AF190=$C$14-1,0,AF190+1)) -> 2 | AG191: =IF(AG292="Y",1,IF(AG190=$C$14-1,0,AG190+1)) -> 2 | AH191: =IF(AH292="Y",1,IF(AH190=$C$14-1,0,AH190+1)) -> 2 | AI191: =IF(AI292="Y",1,IF(AI190=$C$14-1,0,AI190+1)) -> 2 | AJ191: =IF(AJ292="Y",1,IF(AJ190=$C$14-1,0,AJ190+1)) -> 2 | AK191: =IF(AK292="Y",1,IF(AK190=$C$14-1,0,AK190+1)) -> 2 | AL191: =IF(AL292="Y",1,IF(AL190=$C$14-1,0,AL190+1)) -> 2 | AM191: =IF(AM292="Y",1,IF(AM190=$C$14-1,0,AM190+1)) -> 2 | AN191: =IF(AN292="Y",1,IF(AN190=$C$14-1,0,AN190+1)) -> 2 | AO191: =IF(AO292="Y",1,IF(AO190=$C$14-1,0,AO190+1)) -> 2 | AP191: =IF(AP292="Y",1,IF(AP190=$C$14-1,0,AP190+1)) -> 2 | AQ191: =IF(AQ292="Y",1,IF(AQ190=$C$14-1,0,AQ190+1)) -> 2 | AR191: =IF(AR292="Y",1,IF(AR190=$C$14-1,0,AR190+1)) -> 2 | AS191: =IF(AS292="Y",1,IF(AS190=$C$14-1,0,AS190+1)) -> 2 | AT191: =IF(AT292="Y",1,IF(AT190=$C$14-1,0,AT190+1)) -> 2 | AU191: =IF(AU292="Y",1,IF(AU190=$C$14-1,0,AU190+1)) -> 2 | AV191: =IF(AV292="Y",1,IF(AV190=$C$14-1,0,AV190+1)) -> 2 | AW191: =IF(AW292="Y",1,IF(AW190=$C$14-1,0,AW190+1)) -> 2 | AX191: =IF(AX292="Y",1,IF(AX190=$C$14-1,0,AX190+1)) -> 2 | AY191: =IF(AY292="Y",1,IF(AY190=$C$14-1,0,AY190+1)) -> 2 | AZ191: =IF(AZ292="Y",1,IF(AZ190=$C$14-1,0,AZ190+1)) -> 2 | BA191: =IF(BA292="Y",1,IF(BA190=$C$14-1,0,BA190+1)) -> 2 | BB191: =IF(BB292="Y",1,IF(BB190=$C$14-1,0,BB190+1)) -> 2 | BC191: =IF(BC292="Y",1,IF(BC190=$C$14-1,0,BC190+1)) -> 2 | BD191: =IF(BD292="Y",1,IF(BD190=$C$14-1,0,BD190+1)) -> 2 | BE191: =IF(BE292="Y",1,IF(BE190=$C$14-1,0,BE190+1)) -> 2 | BF191: =IF(BF292="Y",1,IF(BF190=$C$14-1,0,BF190+1)) -> 2 | BG191: =IF(BG292="Y",1,IF(BG190=$C$14-1,0,BG190+1)) -> 2 | BH191: =IF(BH292="Y",1,IF(BH190=$C$14-1,0,BH190+1)) -> 2 | BI191: =IF(BI292="Y",1,IF(BI190=$C$14-1,0,BI190+1)) -> 2 | BJ191: =IF(BJ292="Y",1,IF(BJ190=$C$14-1,0,BJ190+1)) -> 2 | BK191: =IF(BK292="Y",1,IF(BK190=$C$14-1,0,BK190+1)) -> 2 | BL191: =IF(BL292="Y",1,IF(BL190=$C$14-1,0,BL190+1)) -> 2 | BM191: =IF(BM292="Y",1,IF(BM190=$C$14-1,0,BM190+1)) -> 2 | BN191: =IF(BN292="Y",1,IF(BN190=$C$14-1,0,BN190+1)) -> 2 | BO191: =IF(BO292="Y",1,IF(BO190=$C$14-1,0,BO190+1)) -> 2 | BP191: =IF(BP292="Y",1,IF(BP190=$C$14-1,0,BP190+1)) -> 2 | BQ191: =IF(BQ292="Y",1,IF(BQ190=$C$14-1,0,BQ190+1)) -> 2 | BR191: =IF(BR292="Y",1,IF(BR190=$C$14-1,0,BR190+1)) -> 2 | BS191: =IF(BS292="Y",1,IF(BS190=$C$14-1,0,BS190+1)) -> 2 | BT191: =IF(BT292="Y",1,IF(BT190=$C$14-1,0,BT190+1)) -> 2 | BU191: =IF(BU292="Y",1,IF(BU190=$C$14-1,0,BU190+1)) -> 2 | BV191: =IF(BV292="Y",1,IF(BV190=$C$14-1,0,BV190+1)) -> 2 | BW191: =IF(BW292="Y",1,IF(BW190=$C$14-1,0,BW190+1)) -> 2 | BX191: =IF(BX292="Y",1,IF(BX190=$C$14-1,0,BX190+1)) -> 2 | BY191: =IF(BY292="Y",1,IF(BY190=$C$14-1,0,BY190+1)) -> 2 | BZ191: =IF(BZ292="Y",1,IF(BZ190=$C$14-1,0,BZ190+1)) -> 2 | CA191: =IF(CA292="Y",1,IF(CA190=$C$14-1,0,CA190+1)) -> 2 | CB191: =IF(CB292="Y",1,IF(CB190=$C$14-1,0,CB190+1)) -> 2 | CC191: =IF(CC292="Y",1,IF(CC190=$C$14-1,0,CC190+1)) -> 2 | CD191: =IF(CD292="Y",1,IF(CD190=$C$14-1,0,CD190+1)) -> 2 | CE191: =IF(CE292="Y",1,IF(CE190=$C$14-1,0,CE190+1)) -> 2 | CF191: =IF(CF292="Y",1,IF(CF190=$C$14-1,0,CF190+1)) -> 2 | CG191: =IF(CG292="Y",1,IF(CG190=$C$14-1,0,CG190+1)) -> 2 | CH191: =IF(CH292="Y",1,IF(CH190=$C$14-1,0,CH190+1)) -> 2 | CI191: =IF(CI292="Y",1,IF(CI190=$C$14-1,0,CI190+1)) -> 2 | CJ191: =IF(CJ292="Y",1,IF(CJ190=$C$14-1,0,CJ190+1)) -> 2 | CK191: =IF(CK292="Y",1,IF(CK190=$C$14-1,0,CK190+1)) -> 2 | CL191: =IF(CL292="Y",1,IF(CL190=$C$14-1,0,CL190+1)) -> 2 | CM191: =IF(CM292="Y",1,IF(CM190=$C$14-1,0,CM190+1)) -> 2 | CN191: =IF(CN292="Y",1,IF(CN190=$C$14-1,0,CN190+1)) -> 2 | CO191: =IF(CO292="Y",1,IF(CO190=$C$14-1,0,CO190+1)) -> 2 | CP191: =IF(CP292="Y",1,IF(CP190=$C$14-1,0,CP190+1)) -> 2 | CQ191: =IF(CQ292="Y",1,IF(CQ190=$C$14-1,0,CQ190+1)) -> 2 | CR191: =IF(CR292="Y",1,IF(CR190=$C$14-1,0,CR190+1)) -> 2 | CS191: =IF(CS292="Y",1,IF(CS190=$C$14-1,0,CS190+1)) -> 2 | CT191: =IF(CT292="Y",1,IF(CT190=$C$14-1,0,CT190+1)) -> 2 | CU191: =IF(CU292="Y",1,IF(CU190=$C$14-1,0,CU190+1)) -> 2 | CV191: =IF(CV292="Y",1,IF(CV190=$C$14-1,0,CV190+1)) -> 2 | CW191: =IF(CW292="Y",1,IF(CW190=$C$14-1,0,CW190+1)) -> 2 | CX191: =IF(CX292="Y",1,IF(CX190=$C$14-1,0,CX190+1)) -> 2 | CY191: =IF(CY292="Y",1,IF(CY190=$C$14-1,0,CY190+1)) -> 2 | CZ191: =IF(CZ292="Y",1,IF(CZ190=$C$14-1,0,CZ190+1)) -> 2 | DA191: =IF(DA292="Y",1,IF(DA190=$C$14-1,0,DA190+1)) -> 2 | DB191: =IF(DB292="Y",1,IF(DB190=$C$14-1,0,DB190+1)) -> 2 | DC191: =IF(DC292="Y",1,IF(DC190=$C$14-1,0,DC190+1)) -> 2 | DD191: =IF(DD292="Y",1,IF(DD190=$C$14-1,0,DD190+1)) -> 2 | DE191: =IF(DE292="Y",1,IF(DE190=$C$14-1,0,DE190+1)) -> 2 | DF191: =IF(DF292="Y",1,IF(DF190=$C$14-1,0,DF190+1)) -> 2 | DG191: =IF(DG292="Y",1,IF(DG190=$C$14-1,0,DG190+1)) -> 2 | DH191: =IF(DH292="Y",1,IF(DH190=$C$14-1,0,DH190+1)) -> 2 | DI191: =IF(DI292="Y",1,IF(DI190=$C$14-1,0,DI190+1)) -> 2 | DJ191: =IF(DJ292="Y",1,IF(DJ190=$C$14-1,0,DJ190+1)) -> 2 | DK191: =IF(DK292="Y",1,IF(DK190=$C$14-1,0,DK190+1)) -> 2 | DL191: =IF(DL292="Y",1,IF(DL190=$C$14-1,0,DL190+1)) -> 2 | DM191: =IF(DM292="Y",1,IF(DM190=$C$14-1,0,DM190+1)) -> 2 | DN191: =IF(DN292="Y",1,IF(DN190=$C$14-1,0,DN190+1)) -> 2 | DO191: =IF(DO292="Y",1,IF(DO190=$C$14-1,0,DO190+1)) -> 2 | DP191: =IF(DP292="Y",1,IF(DP190=$C$14-1,0,DP190+1)) -> 2 | DQ191: =IF(DQ292="Y",1,IF(DQ190=$C$14-1,0,DQ190+1)) -> 2 | DR191: =IF(DR292="Y",1,IF(DR190=$C$14-1,0,DR190+1)) -> 2 | DS191: =IF(DS292="Y",1,IF(DS190=$C$14-1,0,DS190+1)) -> 2 | DT191: =IF(DT292="Y",1,IF(DT190=$C$14-1,0,DT190+1)) -> 2 | DU191: =IF(DU292="Y",1,IF(DU190=$C$14-1,0,DU190+1)) -> 2 | DV191: =IF(DV292="Y",1,IF(DV190=$C$14-1,0,DV190+1)) -> 2 | DW191: =IF(DW292="Y",1,IF(DW190=$C$14-1,0,DW190+1)) -> 2 | DX191: =IF(DX292="Y",1,IF(DX190=$C$14-1,0,DX190+1)) -> 2 | DY191: =IF(DY292="Y",1,IF(DY190=$C$14-1,0,DY190+1)) -> 2 | DZ191: =IF(DZ292="Y",1,IF(DZ190=$C$14-1,0,DZ190+1)) -> 2 | EA191: =IF(EA292="Y",1,IF(EA190=$C$14-1,0,EA190+1)) -> 2 | EB191: =IF(EB292="Y",1,IF(EB190=$C$14-1,0,EB190+1)) -> 2 | EC191: =IF(EC292="Y",1,IF(EC190=$C$14-1,0,EC190+1)) -> 2 | ED191: =IF(ED292="Y",1,IF(ED190=$C$14-1,0,ED190+1)) -> 2 | EE191: =IF(EE292="Y",1,IF(EE190=$C$14-1,0,EE190+1)) -> 2 | EF191: =IF(EF292="Y",1,IF(EF190=$C$14-1,0,EF190+1)) -> 2 | EG191: =IF(EG292="Y",1,IF(EG190=$C$14-1,0,EG190+1)) -> 2 | EH191: =IF(EH292="Y",1,IF(EH190=$C$14-1,0,EH190+1)) -> 2 | EI191: =IF(EI292="Y",1,IF(EI190=$C$14-1,0,EI190+1)) -> 2 | EJ191: =IF(EJ292="Y",1,IF(EJ190=$C$14-1,0,EJ190+1)) -> 2 | EK191: =IF(EK292="Y",1,IF(EK190=$C$14-1,0,EK190+1)) -> 2 | EL191: =IF(EL292="Y",1,IF(EL190=$C$14-1,0,EL190+1)) -> 2 | EM191: =IF(EM292="Y",1,IF(EM190=$C$14-1,0,EM190+1)) -> 2 | EN191: =IF(EN292="Y",1,IF(EN190=$C$14-1,0,EN190+1)) -> 2 | EO191: =IF(EO292="Y",1,IF(EO190=$C$14-1,0,EO190+1)) -> 2 | EP191: =IF(EP292="Y",1,IF(EP190=$C$14-1,0,EP190+1)) -> 2 | EQ191: =IF(EQ292="Y",1,IF(EQ190=$C$14-1,0,EQ190+1)) -> 2 | ER191: =IF(ER292="Y",1,IF(ER190=$C$14-1,0,ER190+1)) -> 2 | ES191: =IF(ES292="Y",1,IF(ES190=$C$14-1,0,ES190+1)) -> 2 | ET191: =IF(ET292="Y",1,IF(ET190=$C$14-1,0,ET190+1)) -> 2 | EU191: =IF(EU292="Y",1,IF(EU190=$C$14-1,0,EU190+1)) -> 2 | EV191: =IF(EV292="Y",1,IF(EV190=$C$14-1,0,EV190+1)) -> 2 | EW191: =IF(EW292="Y",1,IF(EW190=$C$14-1,0,EW190+1)) -> 2 | EX191: =IF(EX292="Y",1,IF(EX190=$C$14-1,0,EX190+1)) -> 2 | EY191: =IF(EY292="Y",1,IF(EY190=$C$14-1,0,EY190+1)) -> 2 | EZ191: =IF(EZ292="Y",1,IF(EZ190=$C$14-1,0,EZ190+1)) -> 2 | FA191: =IF(FA292="Y",1,IF(FA190=$C$14-1,0,FA190+1)) -> 2 | FB191: =IF(FB292="Y",1,IF(FB190=$C$14-1,0,FB190+1)) -> 2 | FC191: =IF(FC292="Y",1,IF(FC190=$C$14-1,0,FC190+1)) -> 2 | FD191: =IF(FD292="Y",1,IF(FD190=$C$14-1,0,FD190+1)) -> 2 | FE191: =IF(FE292="Y",1,IF(FE190=$C$14-1,0,FE190+1)) -> 2 | FF191: =IF(FF292="Y",1,IF(FF190=$C$14-1,0,FF190+1)) -> 2 | FG191: =IF(FG292="Y",1,IF(FG190=$C$14-1,0,FG190+1)) -> 2 | FH191: =IF(FH292="Y",1,IF(FH190=$C$14-1,0,FH190+1)) -> 2 | FI191: =IF(FI292="Y",1,IF(FI190=$C$14-1,0,FI190+1)) -> 2 | FJ191: =IF(FJ292="Y",1,IF(FJ190=$C$14-1,0,FJ190+1)) -> 2 | FK191: =IF(FK292="Y",1,IF(FK190=$C$14-1,0,FK190+1)) -> 2 | FL191: =IF(FL292="Y",1,IF(FL190=$C$14-1,0,FL190+1)) -> 2 | FM191: =IF(FM292="Y",1,IF(FM190=$C$14-1,0,FM190+1)) -> 2 | FN191: =IF(FN292="Y",1,IF(FN190=$C$14-1,0,FN190+1)) -> 2 | FO191: =IF(FO292="Y",1,IF(FO190=$C$14-1,0,FO190+1)) -> 2 | FP191: =IF(FP292="Y",1,IF(FP190=$C$14-1,0,FP190+1)) -> 2 | FQ191: =IF(FQ292="Y",1,IF(FQ190=$C$14-1,0,FQ190+1)) -> 2 | FR191: =IF(FR292="Y",1,IF(FR190=$C$14-1,0,FR190+1)) -> 2 | FS191: =IF(FS292="Y",1,IF(FS190=$C$14-1,0,FS190+1)) -> 2 | FT191: =IF(FT292="Y",1,IF(FT190=$C$14-1,0,FT190+1)) -> 2 | FU191: =IF(FU292="Y",1,IF(FU190=$C$14-1,0,FU190+1)) -> 2 | FV191: =IF(FV292="Y",1,IF(FV190=$C$14-1,0,FV190+1)) -> 2 | FW191: =IF(FW292="Y",1,IF(FW190=$C$14-1,0,FW190+1)) -> 2 | FX191: =IF(FX292="Y",1,IF(FX190=$C$14-1,0,FX190+1)) -> 2 | FY191: =IF(FY292="Y",1,IF(FY190=$C$14-1,0,FY190+1)) -> 2 | FZ191: =IF(FZ292="Y",1,IF(FZ190=$C$14-1,0,FZ190+1)) -> 2 | GA191: =IF(GA292="Y",1,IF(GA190=$C$14-1,0,GA190+1)) -> 2 | GB191: =IF(GB292="Y",1,IF(GB190=$C$14-1,0,GB190+1)) -> 2 | GC191: =IF(GC292="Y",1,IF(GC190=$C$14-1,0,GC190+1)) -> 2 | GD191: =IF(GD292="Y",1,IF(GD190=$C$14-1,0,GD190+1)) -> 2 | GE191: =IF(GE292="Y",1,IF(GE190=$C$14-1,0,GE190+1)) -> 2 | GF191: =IF(GF292="Y",1,IF(GF190=$C$14-1,0,GF190+1)) -> 2 | GG191: =IF(GG292="Y",1,IF(GG190=$C$14-1,0,GG190+1)) -> 2 | GH191: =IF(GH292="Y",1,IF(GH190=$C$14-1,0,GH190+1)) -> 2 | GI191: =IF(GI292="Y",1,IF(GI190=$C$14-1,0,GI190+1)) -> 2 | GJ191: =IF(GJ292="Y",1,IF(GJ190=$C$14-1,0,GJ190+1)) -> 2 | GK191: =IF(GK292="Y",1,IF(GK190=$C$14-1,0,GK190+1)) -> 2 | GL191: =IF(GL292="Y",1,IF(GL190=$C$14-1,0,GL190+1)) -> 2 | GM191: =IF(GM292="Y",1,IF(GM190=$C$14-1,0,GM190+1)) -> 2 | GN191: =IF(GN292="Y",1,IF(GN190=$C$14-1,0,GN190+1)) -> 2 | GO191: =IF(GO292="Y",1,IF(GO190=$C$14-1,0,GO190+1)) -> 2 | GP191: =IF(GP292="Y",1,IF(GP190=$C$14-1,0,GP190+1)) -> 2 | GQ191: =IF(GQ292="Y",1,IF(GQ190=$C$14-1,0,GQ190+1)) -> 2 | GR191: =IF(GR292="Y",1,IF(GR190=$C$14-1,0,GR190+1)) -> 2 | GS191: =IF(GS292="Y",1,IF(GS190=$C$14-1,0,GS190+1)) -> 2 | GT191: =IF(GT292="Y",1,IF(GT190=$C$14-1,0,GT190+1)) -> 2 | GU191: =IF(GU292="Y",1,IF(GU190=$C$14-1,0,GU190+1)) -> 2 | GV191: =IF(GV292="Y",1,IF(GV190=$C$14-1,0,GV190+1)) -> 2 | GW191: =IF(GW292="Y",1,IF(GW190=$C$14-1,0,GW190+1)) -> 2 | GX191: =IF(GX292="Y",1,IF(GX190=$C$14-1,0,GX190+1)) -> 2 | GY191: =IF(GY292="Y",1,IF(GY190=$C$14-1,0,GY190+1)) -> 2 | GZ191: =IF(GZ292="Y",1,IF(GZ190=$C$14-1,0,GZ190+1)) -> 2 | HA191: =IF(HA292="Y",1,IF(HA190=$C$14-1,0,HA190+1)) -> 2 | HB191: =IF(HB292="Y",1,IF(HB190=$C$14-1,0,HB190+1)) -> 2 | HC191: =IF(HC292="Y",1,IF(HC190=$C$14-1,0,HC190+1)) -> 2 | HD191: =IF(HD292="Y",1,IF(HD190=$C$14-1,0,HD190+1)) -> 2 | HE191: =IF(HE292="Y",1,IF(HE190=$C$14-1,0,HE190+1)) -> 2 | HF191: =IF(HF292="Y",1,IF(HF190=$C$14-1,0,HF190+1)) -> 2 | HG191: =IF(HG292="Y",1,IF(HG190=$C$14-1,0,HG190+1)) -> 2 | HH191: =IF(HH292="Y",1,IF(HH190=$C$14-1,0,HH190+1)) -> 2 | HI191: =IF(HI292="Y",1,IF(HI190=$C$14-1,0,HI190+1)) -> 2 | HJ191: =IF(HJ292="Y",1,IF(HJ190=$C$14-1,0,HJ190+1)) -> 2 | HK191: =IF(HK292="Y",1,IF(HK190=$C$14-1,0,HK190+1)) -> 2 | HL191: =IF(HL292="Y",1,IF(HL190=$C$14-1,0,HL190+1)) -> 2 | HM191: =IF(HM292="Y",1,IF(HM190=$C$14-1,0,HM190+1)) -> 2 | HN191: =IF(HN292="Y",1,IF(HN190=$C$14-1,0,HN190+1)) -> 2 | HO191: =IF(HO292="Y",1,IF(HO190=$C$14-1,0,HO190+1)) -> 2 | HP191: =IF(HP292="Y",1,IF(HP190=$C$14-1,0,HP190+1)) -> 2 | HQ191: =IF(HQ292="Y",1,IF(HQ190=$C$14-1,0,HQ190+1)) -> 2 | HR191: =IF(HR292="Y",1,IF(HR190=$C$14-1,0,HR190+1)) -> 2 | HS191: =IF(HS292="Y",1,IF(HS190=$C$14-1,0,HS190+1)) -> 2 | HT191: =IF(HT292="Y",1,IF(HT190=$C$14-1,0,HT190+1)) -> 2 | HU191: =IF(HU292="Y",1,IF(HU190=$C$14-1,0,HU190+1)) -> 2 | HV191: =IF(HV292="Y",1,IF(HV190=$C$14-1,0,HV190+1)) -> 2 | HW191: =IF(HW292="Y",1,IF(HW190=$C$14-1,0,HW190+1)) -> 2 | HX191: =IF(HX292="Y",1,IF(HX190=$C$14-1,0,HX190+1)) -> 2 | HY191: =IF(HY292="Y",1,IF(HY190=$C$14-1,0,HY190+1)) -> 2 | HZ191: =IF(HZ292="Y",1,IF(HZ190=$C$14-1,0,HZ190+1)) -> 2 | IA191: =IF(IA292="Y",1,IF(IA190=$C$14-1,0,IA190+1)) -> 2 | IB191: =IF(IB292="Y",1,IF(IB190=$C$14-1,0,IB190+1)) -> 2 | IC191: =IF(IC292="Y",1,IF(IC190=$C$14-1,0,IC190+1)) -> 2 | ID191: =IF(ID292="Y",1,IF(ID190=$C$14-1,0,ID190+1)) -> 2 | IE191: =IF(IE292="Y",1,IF(IE190=$C$14-1,0,IE190+1)) -> 2 | IF191: =IF(IF292="Y",1,IF(IF190=$C$14-1,0,IF190+1)) -> 2 | IG191: =IF(IG292="Y",1,IF(IG190=$C$14-1,0,IG190+1)) -> 2 | IH191: =IF(IH292="Y",1,IF(IH190=$C$14-1,0,IH190+1)) -> 2 | II191: =IF(II292="Y",1,IF(II190=$C$14-1,0,II190+1)) -> 2 | IJ191: =IF(IJ292="Y",1,IF(IJ190=$C$14-1,0,IJ190+1)) -> 2 | IK191: =IF(IK292="Y",1,IF(IK190=$C$14-1,0,IK190+1)) -> 2 | IL191: =IF(IL292="Y",1,IF(IL190=$C$14-1,0,IL190+1)) -> 2 | IM191: =IF(IM292="Y",1,IF(IM190=$C$14-1,0,IM190+1)) -> 2 | IN191: =IF(IN292="Y",1,IF(IN190=$C$14-1,0,IN190+1)) -> 2 | IO191: =IF(IO292="Y",1,IF(IO190=$C$14-1,0,IO190+1)) -> 2 | IP191: =IF(IP292="Y",1,IF(IP190=$C$14-1,0,IP190+1)) -> 2 | IQ191: =IF(IQ292="Y",1,IF(IQ190=$C$14-1,0,IQ190+1)) -> 2
A192: 3 | B192: 3 | C192: 3 | D192: 3 | E192: 3 | F192: 3 | G192: 3 | H192: 3 | I192: 3 | J192: 3 | K192: 3 | L192: 3 | M192: 3 | N192: 3 | O192: 3 | P192: 3 | Q192: 3 | R192: 3 | S192: 3 | T192: 3 | U192: 3 | V192: 3 | W192: 3 | X192: 3 | Y192: 3 | Z192: 3 | AA192: 3 | AB192: 3 | AC192: 3 | AD192: 3 | AE192: 3 | AF192: 3 | AG192: 3 | AH192: 3 | AI192: 3 | AJ192: 3 | AK192: 3 | AL192: 3 | AM192: 3 | AN192: 3 | AO192: 3 | AP192: 3 | AQ192: 3 | AR192: 3 | AS192: 3 | AT192: 3 | AU192: 3 | AV192: 3 | AW192: 3 | AX192: 3 | AY192: 3 | AZ192: 3 | BA192: 3 | BB192: 3 | BC192: 3 | BD192: 3 | BE192: 3 | BF192: 3 | BG192: 3 | BH192: 3 | BI192: 3 | BJ192: 3 | BK192: 3 | BL192: 3 | BM192: 3 | BN192: 3 | BO192: 3 | BP192: 3 | BQ192: 3 | BR192: 3 | BS192: 3 | BT192: 3 | BU192: 3 | BV192: 3 | BW192: 3 | BX192: 3 | BY192: 3 | BZ192: 3 | CA192: 3 | CB192: 3 | CC192: 3 | CD192: 3 | CE192: 3 | CF192: 3 | CG192: 3 | CH192: 3 | CI192: 3 | CJ192: 3 | CK192: 3 | CL192: 3 | CM192: 3 | CN192: 3 | CO192: 3 | CP192: 3 | CQ192: 3 | CR192: 3 | CS192: 3 | CT192: 3 | CU192: 3 | CV192: 3 | CW192: 3 | CX192: 3 | CY192: 3 | CZ192: 3 | DA192: 3 | DB192: 3 | DC192: 3 | DD192: 3 | DE192: 3 | DF192: 3 | DG192: 3 | DH192: 3 | DI192: 3 | DJ192: 3 | DK192: 3 | DL192: 3 | DM192: 3 | DN192: 3 | DO192: 3 | DP192: 3 | DQ192: 3 | DR192: 3 | DS192: 3 | DT192: 3 | DU192: 3 | DV192: 3 | DW192: 3 | DX192: 3 | DY192: 3 | DZ192: 3 | EA192: 3 | EB192: 3 | EC192: 3 | ED192: 3 | EE192: 3 | EF192: 3 | EG192: 3 | EH192: 3 | EI192: 3 | EJ192: 3 | EK192: 3 | EL192: 3 | EM192: 3 | EN192: 3 | EO192: 3 | EP192: 3 | EQ192: 3 | ER192: 3 | ES192: 3 | ET192: 3 | EU192: 3 | EV192: 3 | EW192: 3 | EX192: 3 | EY192: 3 | EZ192: 3 | FA192: 3 | FB192: 3 | FC192: 3 | FD192: 3 | FE192: 3 | FF192: 3 | FG192: 3 | FH192: 3 | FI192: 3 | FJ192: 3 | FK192: 3 | FL192: 3 | FM192: 3 | FN192: 3 | FO192: 3 | FP192: 3 | FQ192: 3 | FR192: 3 | FS192: 3 | FT192: 3 | FU192: 3 | FV192: 3 | FW192: 3 | FX192: 3 | FY192: 3 | FZ192: 3 | GA192: 3 | GB192: 3 | GC192: 3 | GD192: 3 | GE192: 3 | GF192: 3 | GG192: 3 | GH192: 3 | GI192: 3 | GJ192: 3 | GK192: 3 | GL192: 3 | GM192: 3 | GN192: 3 | GO192: 3 | GP192: 3 | GQ192: 3 | GR192: 3 | GS192: 3 | GT192: 3 | GU192: 3 | GV192: 3 | GW192: 3 | GX192: 3 | GY192: 3 | GZ192: 3 | HA192: 3 | HB192: 3 | HC192: 3 | HD192: 3 | HE192: 3 | HF192: 3 | HG192: 3 | HH192: 3 | HI192: 3 | HJ192: 3 | HK192: 3 | HL192: 3 | HM192: 3 | HN192: 3 | HO192: 3 | HP192: 3 | HQ192: 3 | HR192: 3 | HS192: 3 | HT192: 3 | HU192: 3 | HV192: 3 | HW192: 3 | HX192: 3 | HY192: 3 | HZ192: 3 | IA192: 3 | IB192: 3 | IC192: 3 | ID192: 3 | IE192: 3 | IF192: 3 | IG192: 3 | IH192: 3 | II192: 3 | IJ192: 3 | IK192: 3 | IL192: 3 | IM192: 3 | IN192: 3 | IO192: 3 | IP192: 3 | IQ192: 3
A193: 4 | B193: 4 | C193: 4 | D193: 4 | E193: 4 | F193: 4 | G193: 4 | H193: 4 | I193: 4 | J193: 4 | K193: 4 | L193: 4 | M193: 4 | N193: 4 | O193: 4 | P193: 4 | Q193: 4 | R193: 4 | S193: 4 | T193: 4 | U193: 4 | V193: 4 | W193: 4 | X193: 4 | Y193: 4 | Z193: 4 | AA193: 4 | AB193: 4 | AC193: 4 | AD193: 4 | AE193: 4 | AF193: 4 | AG193: 4 | AH193: 4 | AI193: 4 | AJ193: 4 | AK193: 4 | AL193: 4 | AM193: 4 | AN193: 4 | AO193: 4 | AP193: 4 | AQ193: 4 | AR193: 4 | AS193: 4 | AT193: 4 | AU193: 4 | AV193: 4 | AW193: 4 | AX193: 4 | AY193: 4 | AZ193: 4 | BA193: 4 | BB193: 4 | BC193: 4 | BD193: 4 | BE193: 4 | BF193: 4 | BG193: 4 | BH193: 4 | BI193: 4 | BJ193: 4 | BK193: 4 | BL193: 4 | BM193: 4 | BN193: 4 | BO193: 4 | BP193: 4 | BQ193: 4 | BR193: 4 | BS193: 4 | BT193: 4 | BU193: 4 | BV193: 4 | BW193: 4 | BX193: 4 | BY193: 4 | BZ193: 4 | CA193: 4 | CB193: 4 | CC193: 4 | CD193: 4 | CE193: 4 | CF193: 4 | CG193: 4 | CH193: 4 | CI193: 4 | CJ193: 4 | CK193: 4 | CL193: 4 | CM193: 4 | CN193: 4 | CO193: 4 | CP193: 4 | CQ193: 4 | CR193: 4 | CS193: 4 | CT193: 4 | CU193: 4 | CV193: 4 | CW193: 4 | CX193: 4 | CY193: 4 | CZ193: 4 | DA193: 4 | DB193: 4 | DC193: 4 | DD193: 4 | DE193: 4 | DF193: 4 | DG193: 4 | DH193: 4 | DI193: 4 | DJ193: 4 | DK193: 4 | DL193: 4 | DM193: 4 | DN193: 4 | DO193: 4 | DP193: 4 | DQ193: 4 | DR193: 4 | DS193: 4 | DT193: 4 | DU193: 4 | DV193: 4 | DW193: 4 | DX193: 4 | DY193: 4 | DZ193: 4 | EA193: 4 | EB193: 4 | EC193: 4 | ED193: 4 | EE193: 4 | EF193: 4 | EG193: 4 | EH193: 4 | EI193: 4 | EJ193: 4 | EK193: 4 | EL193: 4 | EM193: 4 | EN193: 4 | EO193: 4 | EP193: 4 | EQ193: 4 | ER193: 4 | ES193: 4 | ET193: 4 | EU193: 4 | EV193: 4 | EW193: 4 | EX193: 4 | EY193: 4 | EZ193: 4 | FA193: 4 | FB193: 4 | FC193: 4 | FD193: 4 | FE193: 4 | FF193: 4 | FG193: 4 | FH193: 4 | FI193: 4 | FJ193: 4 | FK193: 4 | FL193: 4 | FM193: 4 | FN193: 4 | FO193: 4 | FP193: 4 | FQ193: 4 | FR193: 4 | FS193: 4 | FT193: 4 | FU193: 4 | FV193: 4 | FW193: 4 | FX193: 4 | FY193: 4 | FZ193: 4 | GA193: 4 | GB193: 4 | GC193: 4 | GD193: 4 | GE193: 4 | GF193: 4 | GG193: 4 | GH193: 4 | GI193: 4 | GJ193: 4 | GK193: 4 | GL193: 4 | GM193: 4 | GN193: 4 | GO193: 4 | GP193: 4 | GQ193: 4 | GR193: 4 | GS193: 4 | GT193: 4 | GU193: 4 | GV193: 4 | GW193: 4 | GX193: 4 | GY193: 4 | GZ193: 4 | HA193: 4 | HB193: 4 | HC193: 4 | HD193: 4 | HE193: 4 | HF193: 4 | HG193: 4 | HH193: 4 | HI193: 4 | HJ193: 4 | HK193: 4 | HL193: 4 | HM193: 4 | HN193: 4 | HO193: 4 | HP193: 4 | HQ193: 4 | HR193: 4 | HS193: 4 | HT193: 4 | HU193: 4 | HV193: 4 | HW193: 4 | HX193: 4 | HY193: 4 | HZ193: 4 | IA193: 4 | IB193: 4 | IC193: 4 | ID193: 4 | IE193: 4 | IF193: 4 | IG193: 4 | IH193: 4 | II193: 4 | IJ193: 4 | IK193: 4 | IL193: 4 | IM193: 4 | IN193: 4 | IO193: 4 | IP193: 4 | IQ193: 4
A194: 5 | B194: 5 | C194: 5 | D194: 5 | E194: 5 | F194: 5 | G194: 5 | H194: 5 | I194: 5 | J194: 5 | K194: 5 | L194: 5 | M194: 5 | N194: 5 | O194: 5 | P194: 5 | Q194: 5 | R194: 5 | S194: 5 | T194: 5 | U194: 5 | V194: 5 | W194: 5 | X194: 5 | Y194: 5 | Z194: 5 | AA194: 5 | AB194: 5 | AC194: 5 | AD194: 5 | AE194: 5 | AF194: 5 | AG194: 5 | AH194: 5 | AI194: 5 | AJ194: 5 | AK194: 5 | AL194: 5 | AM194: 5 | AN194: 5 | AO194: 5 | AP194: 5 | AQ194: 5 | AR194: 5 | AS194: 5 | AT194: 5 | AU194: 5 | AV194: 5 | AW194: 5 | AX194: 5 | AY194: 5 | AZ194: 5 | BA194: 5 | BB194: 5 | BC194: 5 | BD194: 5 | BE194: 5 | BF194: 5 | BG194: 5 | BH194: 5 | BI194: 5 | BJ194: 5 | BK194: 5 | BL194: 5 | BM194: 5 | BN194: 5 | BO194: 5 | BP194: 5 | BQ194: 5 | BR194: 5 | BS194: 5 | BT194: 5 | BU194: 5 | BV194: 5 | BW194: 5 | BX194: 5 | BY194: 5 | BZ194: 5 | CA194: 5 | CB194: 5 | CC194: 5 | CD194: 5 | CE194: 5 | CF194: 5 | CG194: 5 | CH194: 5 | CI194: 5 | CJ194: 5 | CK194: 5 | CL194: 5 | CM194: 5 | CN194: 5 | CO194: 5 | CP194: 5 | CQ194: 5 | CR194: 5 | CS194: 5 | CT194: 5 | CU194: 5 | CV194: 5 | CW194: 5 | CX194: 5 | CY194: 5 | CZ194: 5 | DA194: 5 | DB194: 5 | DC194: 5 | DD194: 5 | DE194: 5 | DF194: 5 | DG194: 5 | DH194: 5 | DI194: 5 | DJ194: 5 | DK194: 5 | DL194: 5 | DM194: 5 | DN194: 5 | DO194: 5 | DP194: 5 | DQ194: 5 | DR194: 5 | DS194: 5 | DT194: 5 | DU194: 5 | DV194: 5 | DW194: 5 | DX194: 5 | DY194: 5 | DZ194: 5 | EA194: 5 | EB194: 5 | EC194: 5 | ED194: 5 | EE194: 5 | EF194: 5 | EG194: 5 | EH194: 5 | EI194: 5 | EJ194: 5 | EK194: 5 | EL194: 5 | EM194: 5 | EN194: 5 | EO194: 5 | EP194: 5 | EQ194: 5 | ER194: 5 | ES194: 5 | ET194: 5 | EU194: 5 | EV194: 5 | EW194: 5 | EX194: 5 | EY194: 5 | EZ194: 5 | FA194: 5 | FB194: 5 | FC194: 5 | FD194: 5 | FE194: 5 | FF194: 5 | FG194: 5 | FH194: 5 | FI194: 5 | FJ194: 5 | FK194: 5 | FL194: 5 | FM194: 5 | FN194: 5 | FO194: 5 | FP194: 5 | FQ194: 5 | FR194: 5 | FS194: 5 | FT194: 5 | FU194: 5 | FV194: 5 | FW194: 5 | FX194: 5 | FY194: 5 | FZ194: 5 | GA194: 5 | GB194: 5 | GC194: 5 | GD194: 5 | GE194: 5 | GF194: 5 | GG194: 5 | GH194: 5 | GI194: 5 | GJ194: 5 | GK194: 5 | GL194: 5 | GM194: 5 | GN194: 5 | GO194: 5 | GP194: 5 | GQ194: 5 | GR194: 5 | GS194: 5 | GT194: 5 | GU194: 5 | GV194: 5 | GW194: 5 | GX194: 5 | GY194: 5 | GZ194: 5 | HA194: 5 | HB194: 5 | HC194: 5 | HD194: 5 | HE194: 5 | HF194: 5 | HG194: 5 | HH194: 5 | HI194: 5 | HJ194: 5 | HK194: 5 | HL194: 5 | HM194: 5 | HN194: 5 | HO194: 5 | HP194: 5 | HQ194: 5 | HR194: 5 | HS194: 5 | HT194: 5 | HU194: 5 | HV194: 5 | HW194: 5 | HX194: 5 | HY194: 5 | HZ194: 5 | IA194: 5 | IB194: 5 | IC194: 5 | ID194: 5 | IE194: 5 | IF194: 5 | IG194: 5 | IH194: 5 | II194: 5 | IJ194: 5 | IK194: 5 | IL194: 5 | IM194: 5 | IN194: 5 | IO194: 5 | IP194: 5 | IQ194: 5
A195: 6 | B195: 6 | C195: 6 | D195: 6 | E195: 6 | F195: 6 | G195: 6 | H195: 6 | I195: 6 | J195: 6 | K195: 6 | L195: 6 | M195: 6 | N195: 6 | O195: 6 | P195: 6 | Q195: 6 | R195: 6 | S195: 6 | T195: 6 | U195: 6 | V195: 6 | W195: 6 | X195: 6 | Y195: 6 | Z195: 6 | AA195: 6 | AB195: 6 | AC195: 6 | AD195: 6 | AE195: 6 | AF195: 6 | AG195: 6 | AH195: 6 | AI195: 6 | AJ195: 6 | AK195: 6 | AL195: 6 | AM195: 6 | AN195: 6 | AO195: 6 | AP195: 6 | AQ195: 6 | AR195: 6 | AS195: 6 | AT195: 6 | AU195: 6 | AV195: 6 | AW195: 6 | AX195: 6 | AY195: 6 | AZ195: 6 | BA195: 6 | BB195: 6 | BC195: 6 | BD195: 6 | BE195: 6 | BF195: 6 | BG195: 6 | BH195: 6 | BI195: 6 | BJ195: 6 | BK195: 6 | BL195: 6 | BM195: 6 | BN195: 6 | BO195: 6 | BP195: 6 | BQ195: 6 | BR195: 6 | BS195: 6 | BT195: 6 | BU195: 6 | BV195: 6 | BW195: 6 | BX195: 6 | BY195: 6 | BZ195: 6 | CA195: 6 | CB195: 6 | CC195: 6 | CD195: 6 | CE195: 6 | CF195: 6 | CG195: 6 | CH195: 6 | CI195: 6 | CJ195: 6 | CK195: 6 | CL195: 6 | CM195: 6 | CN195: 6 | CO195: 6 | CP195: 6 | CQ195: 6 | CR195: 6 | CS195: 6 | CT195: 6 | CU195: 6 | CV195: 6 | CW195: 6 | CX195: 6 | CY195: 6 | CZ195: 6 | DA195: 6 | DB195: 6 | DC195: 6 | DD195: 6 | DE195: 6 | DF195: 6 | DG195: 6 | DH195: 6 | DI195: 6 | DJ195: 6 | DK195: 6 | DL195: 6 | DM195: 6 | DN195: 6 | DO195: 6 | DP195: 6 | DQ195: 6 | DR195: 6 | DS195: 6 | DT195: 6 | DU195: 6 | DV195: 6 | DW195: 6 | DX195: 6 | DY195: 6 | DZ195: 6 | EA195: 6 | EB195: 6 | EC195: 6 | ED195: 6 | EE195: 6 | EF195: 6 | EG195: 6 | EH195: 6 | EI195: 6 | EJ195: 6 | EK195: 6 | EL195: 6 | EM195: 6 | EN195: 6 | EO195: 6 | EP195: 6 | EQ195: 6 | ER195: 6 | ES195: 6 | ET195: 6 | EU195: 6 | EV195: 6 | EW195: 6 | EX195: 6 | EY195: 6 | EZ195: 6 | FA195: 6 | FB195: 6 | FC195: 6 | FD195: 6 | FE195: 6 | FF195: 6 | FG195: 6 | FH195: 6 | FI195: 6 | FJ195: 6 | FK195: 6 | FL195: 6 | FM195: 6 | FN195: 6 | FO195: 6 | FP195: 6 | FQ195: 6 | FR195: 6 | FS195: 6 | FT195: 6 | FU195: 6 | FV195: 6 | FW195: 6 | FX195: 6 | FY195: 6 | FZ195: 6 | GA195: 6 | GB195: 6 | GC195: 6 | GD195: 6 | GE195: 6 | GF195: 6 | GG195: 6 | GH195: 6 | GI195: 6 | GJ195: 6 | GK195: 6 | GL195: 6 | GM195: 6 | GN195: 6 | GO195: 6 | GP195: 6 | GQ195: 6 | GR195: 6 | GS195: 6 | GT195: 6 | GU195: 6 | GV195: 6 | GW195: 6 | GX195: 6 | GY195: 6 | GZ195: 6 | HA195: 6 | HB195: 6 | HC195: 6 | HD195: 6 | HE195: 6 | HF195: 6 | HG195: 6 | HH195: 6 | HI195: 6 | HJ195: 6 | HK195: 6 | HL195: 6 | HM195: 6 | HN195: 6 | HO195: 6 | HP195: 6 | HQ195: 6 | HR195: 6 | HS195: 6 | HT195: 6 | HU195: 6 | HV195: 6 | HW195: 6 | HX195: 6 | HY195: 6 | HZ195: 6 | IA195: 6 | IB195: 6 | IC195: 6 | ID195: 6 | IE195: 6 | IF195: 6 | IG195: 6 | IH195: 6 | II195: 6 | IJ195: 6 | IK195: 6 | IL195: 6 | IM195: 6 | IN195: 6 | IO195: 6 | IP195: 6 | IQ195: 6
A196: 7 | B196: 7 | C196: 7 | D196: 7 | E196: 7 | F196: 7 | G196: 7 | H196: 7 | I196: 7 | J196: 7 | K196: 7 | L196: 7 | M196: 7 | N196: 7 | O196: 7 | P196: 7 | Q196: 7 | R196: 7 | S196: 7 | T196: 7 | U196: 7 | V196: 7 | W196: 7 | X196: 7 | Y196: 7 | Z196: 7 | AA196: 7 | AB196: 7 | AC196: 7 | AD196: 7 | AE196: 7 | AF196: 7 | AG196: 7 | AH196: 7 | AI196: 7 | AJ196: 7 | AK196: 7 | AL196: 7 | AM196: 7 | AN196: 7 | AO196: 7 | AP196: 7 | AQ196: 7 | AR196: 7 | AS196: 7 | AT196: 7 | AU196: 7 | AV196: 7 | AW196: 7 | AX196: 7 | AY196: 7 | AZ196: 7 | BA196: 7 | BB196: 7 | BC196: 7 | BD196: 7 | BE196: 7 | BF196: 7 | BG196: 7 | BH196: 7 | BI196: 7 | BJ196: 7 | BK196: 7 | BL196: 7 | BM196: 7 | BN196: 7 | BO196: 7 | BP196: 7 | BQ196: 7 | BR196: 7 | BS196: 7 | BT196: 7 | BU196: 7 | BV196: 7 | BW196: 7 | BX196: 7 | BY196: 7 | BZ196: 7 | CA196: 7 | CB196: 7 | CC196: 7 | CD196: 7 | CE196: 7 | CF196: 7 | CG196: 7 | CH196: 7 | CI196: 7 | CJ196: 7 | CK196: 7 | CL196: 7 | CM196: 7 | CN196: 7 | CO196: 7 | CP196: 7 | CQ196: 7 | CR196: 7 | CS196: 7 | CT196: 7 | CU196: 7 | CV196: 7 | CW196: 7 | CX196: 7 | CY196: 7 | CZ196: 7 | DA196: 7 | DB196: 7 | DC196: 7 | DD196: 7 | DE196: 7 | DF196: 7 | DG196: 7 | DH196: 7 | DI196: 7 | DJ196: 7 | DK196: 7 | DL196: 7 | DM196: 7 | DN196: 7 | DO196: 7 | DP196: 7 | DQ196: 7 | DR196: 7 | DS196: 7 | DT196: 7 | DU196: 7 | DV196: 7 | DW196: 7 | DX196: 7 | DY196: 7 | DZ196: 7 | EA196: 7 | EB196: 7 | EC196: 7 | ED196: 7 | EE196: 7 | EF196: 7 | EG196: 7 | EH196: 7 | EI196: 7 | EJ196: 7 | EK196: 7 | EL196: 7 | EM196: 7 | EN196: 7 | EO196: 7 | EP196: 7 | EQ196: 7 | ER196: 7 | ES196: 7 | ET196: 7 | EU196: 7 | EV196: 7 | EW196: 7 | EX196: 7 | EY196: 7 | EZ196: 7 | FA196: 7 | FB196: 7 | FC196: 7 | FD196: 7 | FE196: 7 | FF196: 7 | FG196: 7 | FH196: 7 | FI196: 7 | FJ196: 7 | FK196: 7 | FL196: 7 | FM196: 7 | FN196: 7 | FO196: 7 | FP196: 7 | FQ196: 7 | FR196: 7 | FS196: 7 | FT196: 7 | FU196: 7 | FV196: 7 | FW196: 7 | FX196: 7 | FY196: 7 | FZ196: 7 | GA196: 7 | GB196: 7 | GC196: 7 | GD196: 7 | GE196: 7 | GF196: 7 | GG196: 7 | GH196: 7 | GI196: 7 | GJ196: 7 | GK196: 7 | GL196: 7 | GM196: 7 | GN196: 7 | GO196: 7 | GP196: 7 | GQ196: 7 | GR196: 7 | GS196: 7 | GT196: 7 | GU196: 7 | GV196: 7 | GW196: 7 | GX196: 7 | GY196: 7 | GZ196: 7 | HA196: 7 | HB196: 7 | HC196: 7 | HD196: 7 | HE196: 7 | HF196: 7 | HG196: 7 | HH196: 7 | HI196: 7 | HJ196: 7 | HK196: 7 | HL196: 7 | HM196: 7 | HN196: 7 | HO196: 7 | HP196: 7 | HQ196: 7 | HR196: 7 | HS196: 7 | HT196: 7 | HU196: 7 | HV196: 7 | HW196: 7 | HX196: 7 | HY196: 7 | HZ196: 7 | IA196: 7 | IB196: 7 | IC196: 7 | ID196: 7 | IE196: 7 | IF196: 7 | IG196: 7 | IH196: 7 | II196: 7 | IJ196: 7 | IK196: 7 | IL196: 7 | IM196: 7 | IN196: 7 | IO196: 7 | IP196: 7 | IQ196: 7
A197: 8 | B197: 8 | C197: 8 | D197: 8 | E197: 8 | F197: 8 | G197: 8 | H197: 8 | I197: 8 | J197: 8 | K197: 8 | L197: 8 | M197: 8 | N197: 8 | O197: 8 | P197: 8 | Q197: 8 | R197: 8 | S197: 8 | T197: 8 | U197: 8 | V197: 8 | W197: 8 | X197: 8 | Y197: 8 | Z197: 8 | AA197: 8 | AB197: 8 | AC197: 8 | AD197: 8 | AE197: 8 | AF197: 8 | AG197: 8 | AH197: 8 | AI197: 8 | AJ197: 8 | AK197: 8 | AL197: 8 | AM197: 8 | AN197: 8 | AO197: 8 | AP197: 8 | AQ197: 8 | AR197: 8 | AS197: 8 | AT197: 8 | AU197: 8 | AV197: 8 | AW197: 8 | AX197: 8 | AY197: 8 | AZ197: 8 | BA197: 8 | BB197: 8 | BC197: 8 | BD197: 8 | BE197: 8 | BF197: 8 | BG197: 8 | BH197: 8 | BI197: 8 | BJ197: 8 | BK197: 8 | BL197: 8 | BM197: 8 | BN197: 8 | BO197: 8 | BP197: 8 | BQ197: 8 | BR197: 8 | BS197: 8 | BT197: 8 | BU197: 8 | BV197: 8 | BW197: 8 | BX197: 8 | BY197: 8 | BZ197: 8 | CA197: 8 | CB197: 8 | CC197: 8 | CD197: 8 | CE197: 8 | CF197: 8 | CG197: 8 | CH197: 8 | CI197: 8 | CJ197: 8 | CK197: 8 | CL197: 8 | CM197: 8 | CN197: 8 | CO197: 8 | CP197: 8 | CQ197: 8 | CR197: 8 | CS197: 8 | CT197: 8 | CU197: 8 | CV197: 8 | CW197: 8 | CX197: 8 | CY197: 8 | CZ197: 8 | DA197: 8 | DB197: 8 | DC197: 1 | DD197: 8 | DE197: 8 | DF197: 8 | DG197: 8 | DH197: 8 | DI197: 8 | DJ197: 8 | DK197: 8 | DL197: 8 | DM197: 8 | DN197: 8 | DO197: 8 | DP197: 8 | DQ197: 8 | DR197: 8 | DS197: 8 | DT197: 8 | DU197: 8 | DV197: 8 | DW197: 8 | DX197: 8 | DY197: 8 | DZ197: 8 | EA197: 8 | EB197: 8 | EC197: 8 | ED197: 8 | EE197: 8 | EF197: 8 | EG197: 8 | EH197: 8 | EI197: 8 | EJ197: 8 | EK197: 8 | EL197: 8 | EM197: 8 | EN197: 8 | EO197: 8 | EP197: 8 | EQ197: 8 | ER197: 8 | ES197: 8 | ET197: 8 | EU197: 8 | EV197: 8 | EW197: 8 | EX197: 8 | EY197: 8 | EZ197: 8 | FA197: 8 | FB197: 8 | FC197: 8 | FD197: 8 | FE197: 8 | FF197: 8 | FG197: 8 | FH197: 8 | FI197: 8 | FJ197: 8 | FK197: 8 | FL197: 8 | FM197: 8 | FN197: 8 | FO197: 8 | FP197: 8 | FQ197: 8 | FR197: 8 | FS197: 8 | FT197: 8 | FU197: 8 | FV197: 8 | FW197: 8 | FX197: 8 | FY197: 8 | FZ197: 8 | GA197: 8 | GB197: 8 | GC197: 8 | GD197: 8 | GE197: 8 | GF197: 8 | GG197: 8 | GH197: 8 | GI197: 8 | GJ197: 8 | GK197: 8 | GL197: 8 | GM197: 8 | GN197: 8 | GO197: 8 | GP197: 8 | GQ197: 8 | GR197: 8 | GS197: 8 | GT197: 8 | GU197: 8 | GV197: 8 | GW197: 8 | GX197: 8 | GY197: 8 | GZ197: 8 | HA197: 8 | HB197: 8 | HC197: 8 | HD197: 8 | HE197: 8 | HF197: 8 | HG197: 8 | HH197: 8 | HI197: 8 | HJ197: 8 | HK197: 8 | HL197: 8 | HM197: 8 | HN197: 8 | HO197: 8 | HP197: 8 | HQ197: 8 | HR197: 8 | HS197: 8 | HT197: 8 | HU197: 8 | HV197: 8 | HW197: 8 | HX197: 8 | HY197: 8 | HZ197: 8 | IA197: 8 | IB197: 8 | IC197: 8 | ID197: 8 | IE197: 8 | IF197: 8 | IG197: 8 | IH197: 8 | II197: 8 | IJ197: 8 | IK197: 8 | IL197: 8 | IM197: 8 | IN197: 8 | IO197: 8 | IP197: 8 | IQ197: 8
A198: 9 | B198: 9 | C198: 9 | D198: 9 | E198: 9 | F198: 9 | G198: 9 | H198: 9 | I198: 9 | J198: 9 | K198: 9 | L198: 9 | M198: 9 | N198: 9 | O198: 9 | P198: 9 | Q198: 9 | R198: 9 | S198: 9 | T198: 9 | U198: 9 | V198: 9 | W198: 9 | X198: 9 | Y198: 9 | Z198: 9 | AA198: 9 | AB198: 9 | AC198: 9 | AD198: 9 | AE198: 9 | AF198: 9 | AG198: 9 | AH198: 9 | AI198: 9 | AJ198: 9 | AK198: 9 | AL198: 9 | AM198: 9 | AN198: 9 | AO198: 9 | AP198: 9 | AQ198: 9 | AR198: 9 | AS198: 9 | AT198: 9 | AU198: 9 | AV198: 9 | AW198: 9 | AX198: 9 | AY198: 9 | AZ198: 9 | BA198: 9 | BB198: 9 | BC198: 9 | BD198: 9 | BE198: 9 | BF198: 9 | BG198: 9 | BH198: 9 | BI198: 9 | BJ198: 9 | BK198: 9 | BL198: 9 | BM198: 9 | BN198: 9 | BO198: 9 | BP198: 9 | BQ198: 9 | BR198: 9 | BS198: 9 | BT198: 9 | BU198: 9 | BV198: 9 | BW198: 9 | BX198: 9 | BY198: 9 | BZ198: 9 | CA198: 9 | CB198: 9 | CC198: 9 | CD198: 9 | CE198: 9 | CF198: 9 | CG198: 9 | CH198: 9 | CI198: 9 | CJ198: 9 | CK198: 9 | CL198: 9 | CM198: 9 | CN198: 9 | CO198: 9 | CP198: 9 | CQ198: 9 | CR198: 9 | CS198: 9 | CT198: 9 | CU198: 9 | CV198: 9 | CW198: 9 | CX198: 9 | CY198: 9 | CZ198: 9 | DA198: 9 | DB198: 9 | DC198: 2 | DD198: 9 | DE198: 9 | DF198: 9 | DG198: 9 | DH198: 9 | DI198: 9 | DJ198: 9 | DK198: 9 | DL198: 9 | DM198: 9 | DN198: 9 | DO198: 9 | DP198: 9 | DQ198: 9 | DR198: 9 | DS198: 9 | DT198: 9 | DU198: 9 | DV198: 9 | DW198: 9 | DX198: 9 | DY198: 9 | DZ198: 9 | EA198: 9 | EB198: 9 | EC198: 9 | ED198: 9 | EE198: 9 | EF198: 9 | EG198: 9 | EH198: 9 | EI198: 9 | EJ198: 9 | EK198: 9 | EL198: 9 | EM198: 9 | EN198: 9 | EO198: 9 | EP198: 9 | EQ198: 9 | ER198: 9 | ES198: 9 | ET198: 9 | EU198: 9 | EV198: 9 | EW198: 9 | EX198: 9 | EY198: 9 | EZ198: 9 | FA198: 9 | FB198: 9 | FC198: 9 | FD198: 9 | FE198: 9 | FF198: 9 | FG198: 9 | FH198: 9 | FI198: 9 | FJ198: 9 | FK198: 9 | FL198: 9 | FM198: 9 | FN198: 9 | FO198: 9 | FP198: 9 | FQ198: 9 | FR198: 9 | FS198: 9 | FT198: 9 | FU198: 9 | FV198: 9 | FW198: 9 | FX198: 9 | FY198: 9 | FZ198: 9 | GA198: 9 | GB198: 9 | GC198: 9 | GD198: 9 | GE198: 9 | GF198: 9 | GG198: 9 | GH198: 9 | GI198: 9 | GJ198: 9 | GK198: 9 | GL198: 9 | GM198: 9 | GN198: 9 | GO198: 9 | GP198: 9 | GQ198: 9 | GR198: 9 | GS198: 9 | GT198: 9 | GU198: 9 | GV198: 9 | GW198: 9 | GX198: 9 | GY198: 9 | GZ198: 9 | HA198: 9 | HB198: 9 | HC198: 9 | HD198: 9 | HE198: 9 | HF198: 9 | HG198: 9 | HH198: 9 | HI198: 9 | HJ198: 9 | HK198: 9 | HL198: 9 | HM198: 9 | HN198: 9 | HO198: 9 | HP198: 9 | HQ198: 9 | HR198: 9 | HS198: 9 | HT198: 9 | HU198: 9 | HV198: 9 | HW198: 9 | HX198: 9 | HY198: 9 | HZ198: 9 | IA198: 9 | IB198: 9 | IC198: 9 | ID198: 9 | IE198: 9 | IF198: 9 | IG198: 9 | IH198: 9 | II198: 9 | IJ198: 9 | IK198: 9 | IL198: 9 | IM198: 9 | IN198: 9 | IO198: 9 | IP198: 9 | IQ198: 9
A199: 10 | B199: 10 | C199: 10 | D199: 10 | E199: 10 | F199: 10 | G199: 10 | H199: 10 | I199: 10 | J199: 10 | K199: 10 | L199: 10 | M199: 10 | N199: 10 | O199: 10 | P199: 10 | Q199: 10 | R199: 10 | S199: 10 | T199: 10 | U199: 10 | V199: 10 | W199: 10 | X199: 10 | Y199: 10 | Z199: 10 | AA199: 10 | AB199: 10 | AC199: 10 | AD199: 10 | AE199: 10 | AF199: 10 | AG199: 10 | AH199: 10 | AI199: 10 | AJ199: 10 | AK199: 10 | AL199: 10 | AM199: 10 | AN199: 10 | AO199: 10 | AP199: 10 | AQ199: 10 | AR199: 10 | AS199: 10 | AT199: 10 | AU199: 10 | AV199: 10 | AW199: 10 | AX199: 10 | AY199: 10 | AZ199: 10 | BA199: 10 | BB199: 10 | BC199: 10 | BD199: 10 | BE199: 10 | BF199: 10 | BG199: 10 | BH199: 10 | BI199: 10 | BJ199: 10 | BK199: 10 | BL199: 10 | BM199: 10 | BN199: 10 | BO199: 10 | BP199: 10 | BQ199: 10 | BR199: 10 | BS199: 10 | BT199: 10 | BU199: 10 | BV199: 10 | BW199: 10 | BX199: 10 | BY199: 10 | BZ199: 10 | CA199: 10 | CB199: 10 | CC199: 10 | CD199: 10 | CE199: 10 | CF199: 10 | CG199: 10 | CH199: 10 | CI199: 10 | CJ199: 10 | CK199: 10 | CL199: 10 | CM199: 10 | CN199: 10 | CO199: 10 | CP199: 10 | CQ199: 10 | CR199: 10 | CS199: 10 | CT199: 10 | CU199: 10 | CV199: 10 | CW199: 10 | CX199: 10 | CY199: 10 | CZ199: 10 | DA199: 10 | DB199: 10 | DC199: 3 | DD199: 10 | DE199: 10 | DF199: 10 | DG199: 10 | DH199: 10 | DI199: 10 | DJ199: 10 | DK199: 10 | DL199: 10 | DM199: 10 | DN199: 10 | DO199: 10 | DP199: 10 | DQ199: 10 | DR199: 10 | DS199: 10 | DT199: 10 | DU199: 10 | DV199: 10 | DW199: 10 | DX199: 10 | DY199: 10 | DZ199: 10 | EA199: 10 | EB199: 10 | EC199: 10 | ED199: 10 | EE199: 10 | EF199: 1 | EG199: 10 | EH199: 10 | EI199: 10 | EJ199: 10 | EK199: 10 | EL199: 10 | EM199: 10 | EN199: 10 | EO199: 10 | EP199: 10 | EQ199: 10 | ER199: 10 | ES199: 10 | ET199: 10 | EU199: 10 | EV199: 10 | EW199: 10 | EX199: 10 | EY199: 10 | EZ199: 10 | FA199: 10 | FB199: 10 | FC199: 10 | FD199: 10 | FE199: 10 | FF199: 10 | FG199: 10 | FH199: 10 | FI199: 10 | FJ199: 10 | FK199: 10 | FL199: 10 | FM199: 10 | FN199: 10 | FO199: 10 | FP199: 10 | FQ199: 10 | FR199: 10 | FS199: 10 | FT199: 10 | FU199: 10 | FV199: 10 | FW199: 10 | FX199: 10 | FY199: 10 | FZ199: 10 | GA199: 10 | GB199: 10 | GC199: 10 | GD199: 10 | GE199: 10 | GF199: 10 | GG199: 10 | GH199: 10 | GI199: 10 | GJ199: 10 | GK199: 10 | GL199: 10 | GM199: 10 | GN199: 10 | GO199: 10 | GP199: 10 | GQ199: 10 | GR199: 10 | GS199: 10 | GT199: 10 | GU199: 10 | GV199: 10 | GW199: 10 | GX199: 10 | GY199: 10 | GZ199: 10 | HA199: 10 | HB199: 10 | HC199: 10 | HD199: 10 | HE199: 10 | HF199: 10 | HG199: 10 | HH199: 10 | HI199: 10 | HJ199: 10 | HK199: 10 | HL199: 10 | HM199: 10 | HN199: 10 | HO199: 10 | HP199: 10 | HQ199: 10 | HR199: 10 | HS199: 10 | HT199: 10 | HU199: 10 | HV199: 10 | HW199: 10 | HX199: 10 | HY199: 10 | HZ199: 10 | IA199: 10 | IB199: 10 | IC199: 10 | ID199: 10 | IE199: 10 | IF199: 10 | IG199: 10 | IH199: 10 | II199: 10 | IJ199: 10 | IK199: 10 | IL199: 10 | IM199: 10 | IN199: 10 | IO199: 10 | IP199: 10 | IQ199: 10
A200: 11 | B200: 11 | C200: 11 | D200: 11 | E200: 11 | F200: 11 | G200: 11 | H200: 11 | I200: 11 | J200: 11 | K200: 11 | L200: 11 | M200: 11 | N200: 11 | O200: 11 | P200: 11 | Q200: 11 | R200: 11 | S200: 11 | T200: 11 | U200: 11 | V200: 11 | W200: 11 | X200: 11 | Y200: 11 | Z200: 11 | AA200: 11 | AB200: 11 | AC200: 11 | AD200: 11 | AE200: 11 | AF200: 11 | AG200: 11 | AH200: 11 | AI200: 11 | AJ200: 11 | AK200: 11 | AL200: 11 | AM200: 11 | AN200: 11 | AO200: 11 | AP200: 11 | AQ200: 11 | AR200: 11 | AS200: 11 | AT200: 11 | AU200: 11 | AV200: 11 | AW200: 11 | AX200: 11 | AY200: 11 | AZ200: 11 | BA200: 11 | BB200: 11 | BC200: 11 | BD200: 11 | BE200: 11 | BF200: 11 | BG200: 11 | BH200: 11 | BI200: 11 | BJ200: 11 | BK200: 11 | BL200: 11 | BM200: 11 | BN200: 11 | BO200: 11 | BP200: 11 | BQ200: 11 | BR200: 11 | BS200: 11 | BT200: 11 | BU200: 11 | BV200: 11 | BW200: 11 | BX200: 11 | BY200: 11 | BZ200: 11 | CA200: 11 | CB200: 11 | CC200: 11 | CD200: 11 | CE200: 11 | CF200: 11 | CG200: 11 | CH200: 11 | CI200: 11 | CJ200: 11 | CK200: 11 | CL200: 11 | CM200: 11 | CN200: 11 | CO200: 11 | CP200: 11 | CQ200: 11 | CR200: 11 | CS200: 11 | CT200: 11 | CU200: 11 | CV200: 11 | CW200: 11 | CX200: 11 | CY200: 11 | CZ200: 11 | DA200: 11 | DB200: 11 | DC200: 4 | DD200: 11 | DE200: 11 | DF200: 11 | DG200: 11 | DH200: 11 | DI200: 11 | DJ200: 11 | DK200: 11 | DL200: 11 | DM200: 11 | DN200: 11 | DO200: 11 | DP200: 11 | DQ200: 11 | DR200: 11 | DS200: 11 | DT200: 11 | DU200: 11 | DV200: 11 | DW200: 11 | DX200: 11 | DY200: 11 | DZ200: 11 | EA200: 11 | EB200: 11 | EC200: 11 | ED200: 11 | EE200: 11 | EF200: 2 | EG200: 11 | EH200: 11 | EI200: 11 | EJ200: 11 | EK200: 11 | EL200: 11 | EM200: 11 | EN200: 11 | EO200: 11 | EP200: 11 | EQ200: 11 | ER200: 11 | ES200: 11 | ET200: 11 | EU200: 11 | EV200: 11 | EW200: 11 | EX200: 11 | EY200: 11 | EZ200: 11 | FA200: 11 | FB200: 11 | FC200: 11 | FD200: 11 | FE200: 11 | FF200: 11 | FG200: 11 | FH200: 11 | FI200: 11 | FJ200: 11 | FK200: 11 | FL200: 11 | FM200: 11 | FN200: 11 | FO200: 11 | FP200: 11 | FQ200: 11 | FR200: 11 | FS200: 11 | FT200: 11 | FU200: 11 | FV200: 11 | FW200: 11 | FX200: 11 | FY200: 11 | FZ200: 11 | GA200: 11 | GB200: 11 | GC200: 11 | GD200: 11 | GE200: 11 | GF200: 11 | GG200: 11 | GH200: 11 | GI200: 11 | GJ200: 11 | GK200: 11 | GL200: 11 | GM200: 11 | GN200: 11 | GO200: 11 | GP200: 11 | GQ200: 11 | GR200: 11 | GS200: 11 | GT200: 11 | GU200: 11 | GV200: 11 | GW200: 11 | GX200: 11 | GY200: 11 | GZ200: 11 | HA200: 11 | HB200: 11 | HC200: 11 | HD200: 11 | HE200: 11 | HF200: 11 | HG200: 11 | HH200: 11 | HI200: 11 | HJ200: 11 | HK200: 11 | HL200: 11 | HM200: 11 | HN200: 11 | HO200: 11 | HP200: 11 | HQ200: 11 | HR200: 11 | HS200: 11 | HT200: 11 | HU200: 11 | HV200: 11 | HW200: 11 | HX200: 11 | HY200: 11 | HZ200: 11 | IA200: 11 | IB200: 11 | IC200: 11 | ID200: 11 | IE200: 11 | IF200: 11 | IG200: 11 | IH200: 11 | II200: 11 | IJ200: 11 | IK200: 11 | IL200: 11 | IM200: 11 | IN200: 11 | IO200: 11 | IP200: 11 | IQ200: 11
A201: 12 | B201: 12 | C201: 12 | D201: 12 | E201: 12 | F201: 12 | G201: 12 | H201: 12 | I201: 12 | J201: 12 | K201: 12 | L201: 12 | M201: 12 | N201: 12 | O201: 12 | P201: 12 | Q201: 12 | R201: 12 | S201: 12 | T201: 12 | U201: 12 | V201: 12 | W201: 12 | X201: 12 | Y201: 12 | Z201: 12 | AA201: 12 | AB201: 12 | AC201: 12 | AD201: 12 | AE201: 12 | AF201: 12 | AG201: 12 | AH201: 12 | AI201: 12 | AJ201: 12 | AK201: 12 | AL201: 12 | AM201: 12 | AN201: 12 | AO201: 12 | AP201: 12 | AQ201: 12 | AR201: 12 | AS201: 12 | AT201: 12 | AU201: 12 | AV201: 12 | AW201: 12 | AX201: 12 | AY201: 12 | AZ201: 12 | BA201: 12 | BB201: 12 | BC201: 12 | BD201: 12 | BE201: 12 | BF201: 12 | BG201: 12 | BH201: 12 | BI201: 12 | BJ201: 12 | BK201: 12 | BL201: 12 | BM201: 12 | BN201: 12 | BO201: 12 | BP201: 12 | BQ201: 12 | BR201: 12 | BS201: 12 | BT201: 12 | BU201: 12 | BV201: 12 | BW201: 12 | BX201: 12 | BY201: 12 | BZ201: 12 | CA201: 12 | CB201: 12 | CC201: 12 | CD201: 12 | CE201: 12 | CF201: 12 | CG201: 12 | CH201: 12 | CI201: 12 | CJ201: 12 | CK201: 12 | CL201: 12 | CM201: 12 | CN201: 12 | CO201: 12 | CP201: 12 | CQ201: 12 | CR201: 12 | CS201: 12 | CT201: 12 | CU201: 12 | CV201: 12 | CW201: 12 | CX201: 12 | CY201: 12 | CZ201: 12 | DA201: 12 | DB201: 12 | DC201: 5 | DD201: 12 | DE201: 12 | DF201: 12 | DG201: 12 | DH201: 12 | DI201: 12 | DJ201: 12 | DK201: 12 | DL201: 12 | DM201: 12 | DN201: 12 | DO201: 12 | DP201: 12 | DQ201: 12 | DR201: 1 | DS201: 12 | DT201: 12 | DU201: 12 | DV201: 12 | DW201: 12 | DX201: 12 | DY201: 12 | DZ201: 12 | EA201: 12 | EB201: 12 | EC201: 12 | ED201: 12 | EE201: 12 | EF201: 3 | EG201: 12 | EH201: 12 | EI201: 12 | EJ201: 12 | EK201: 12 | EL201: 12 | EM201: 12 | EN201: 12 | EO201: 12 | EP201: 12 | EQ201: 12 | ER201: 12 | ES201: 12 | ET201: 12 | EU201: 12 | EV201: 12 | EW201: 12 | EX201: 12 | EY201: 12 | EZ201: 12 | FA201: 12 | FB201: 12 | FC201: 12 | FD201: 12 | FE201: 12 | FF201: 12 | FG201: 12 | FH201: 12 | FI201: 12 | FJ201: 12 | FK201: 12 | FL201: 12 | FM201: 12 | FN201: 12 | FO201: 12 | FP201: 12 | FQ201: 12 | FR201: 12 | FS201: 12 | FT201: 12 | FU201: 12 | FV201: 12 | FW201: 12 | FX201: 12 | FY201: 12 | FZ201: 12 | GA201: 12 | GB201: 12 | GC201: 12 | GD201: 12 | GE201: 12 | GF201: 12 | GG201: 12 | GH201: 12 | GI201: 12 | GJ201: 12 | GK201: 12 | GL201: 12 | GM201: 12 | GN201: 12 | GO201: 12 | GP201: 12 | GQ201: 12 | GR201: 12 | GS201: 12 | GT201: 12 | GU201: 12 | GV201: 12 | GW201: 12 | GX201: 12 | GY201: 12 | GZ201: 12 | HA201: 12 | HB201: 12 | HC201: 12 | HD201: 12 | HE201: 12 | HF201: 12 | HG201: 12 | HH201: 12 | HI201: 12 | HJ201: 12 | HK201: 12 | HL201: 12 | HM201: 12 | HN201: 12 | HO201: 12 | HP201: 12 | HQ201: 12 | HR201: 12 | HS201: 12 | HT201: 12 | HU201: 12 | HV201: 12 | HW201: 12 | HX201: 12 | HY201: 12 | HZ201: 12 | IA201: 12 | IB201: 12 | IC201: 12 | ID201: 12 | IE201: 12 | IF201: 12 | IG201: 12 | IH201: 12 | II201: 12 | IJ201: 12 | IK201: 12 | IL201: 12 | IM201: 12 | IN201: 12 | IO201: 12 | IP201: 12 | IQ201: 12
A202: 13 | B202: 13 | C202: 13 | D202: 13 | E202: 13 | F202: 13 | G202: 13 | H202: 13 | I202: 13 | J202: 13 | K202: 13 | L202: 13 | M202: 13 | N202: 13 | O202: 13 | P202: 13 | Q202: 13 | R202: 13 | S202: 13 | T202: 13 | U202: 13 | V202: 13 | W202: 13 | X202: 13 | Y202: 13 | Z202: 13 | AA202: 13 | AB202: 13 | AC202: 13 | AD202: 13 | AE202: 13 | AF202: 13 | AG202: 13 | AH202: 13 | AI202: 13 | AJ202: 13 | AK202: 13 | AL202: 13 | AM202: 13 | AN202: 13 | AO202: 13 | AP202: 13 | AQ202: 13 | AR202: 13 | AS202: 13 | AT202: 13 | AU202: 13 | AV202: 13 | AW202: 13 | AX202: 13 | AY202: 13 | AZ202: 13 | BA202: 13 | BB202: 13 | BC202: 13 | BD202: 13 | BE202: 13 | BF202: 13 | BG202: 13 | BH202: 13 | BI202: 13 | BJ202: 13 | BK202: 13 | BL202: 13 | BM202: 13 | BN202: 13 | BO202: 13 | BP202: 13 | BQ202: 13 | BR202: 13 | BS202: 13 | BT202: 13 | BU202: 13 | BV202: 13 | BW202: 13 | BX202: 13 | BY202: 13 | BZ202: 13 | CA202: 13 | CB202: 13 | CC202: 13 | CD202: 13 | CE202: 13 | CF202: 13 | CG202: 13 | CH202: 13 | CI202: 13 | CJ202: 13 | CK202: 13 | CL202: 13 | CM202: 13 | CN202: 13 | CO202: 13 | CP202: 13 | CQ202: 13 | CR202: 13 | CS202: 13 | CT202: 13 | CU202: 13 | CV202: 13 | CW202: 13 | CX202: 13 | CY202: 13 | CZ202: 13 | DA202: 13 | DB202: 13 | DC202: 6 | DD202: 13 | DE202: 13 | DF202: 13 | DG202: 13 | DH202: 13 | DI202: 13 | DJ202: 13 | DK202: 13 | DL202: 13 | DM202: 13 | DN202: 13 | DO202: 13 | DP202: 13 | DQ202: 13 | DR202: 2 | DS202: 13 | DT202: 13 | DU202: 13 | DV202: 13 | DW202: 13 | DX202: 13 | DY202: 13 | DZ202: 13 | EA202: 13 | EB202: 13 | EC202: 13 | ED202: 13 | EE202: 13 | EF202: 4 | EG202: 13 | EH202: 13 | EI202: 13 | EJ202: 13 | EK202: 13 | EL202: 13 | EM202: 13 | EN202: 13 | EO202: 13 | EP202: 13 | EQ202: 13 | ER202: 13 | ES202: 13 | ET202: 13 | EU202: 13 | EV202: 13 | EW202: 13 | EX202: 13 | EY202: 13 | EZ202: 13 | FA202: 13 | FB202: 13 | FC202: 13 | FD202: 13 | FE202: 13 | FF202: 13 | FG202: 13 | FH202: 13 | FI202: 13 | FJ202: 13 | FK202: 13 | FL202: 13 | FM202: 13 | FN202: 13 | FO202: 13 | FP202: 13 | FQ202: 13 | FR202: 13 | FS202: 13 | FT202: 13 | FU202: 13 | FV202: 13 | FW202: 13 | FX202: 13 | FY202: 13 | FZ202: 13 | GA202: 13 | GB202: 13 | GC202: 13 | GD202: 13 | GE202: 13 | GF202: 13 | GG202: 13 | GH202: 13 | GI202: 13 | GJ202: 13 | GK202: 13 | GL202: 13 | GM202: 13 | GN202: 13 | GO202: 13 | GP202: 13 | GQ202: 13 | GR202: 13 | GS202: 13 | GT202: 13 | GU202: 13 | GV202: 13 | GW202: 13 | GX202: 13 | GY202: 13 | GZ202: 13 | HA202: 13 | HB202: 13 | HC202: 13 | HD202: 13 | HE202: 13 | HF202: 13 | HG202: 13 | HH202: 13 | HI202: 13 | HJ202: 13 | HK202: 13 | HL202: 13 | HM202: 13 | HN202: 13 | HO202: 13 | HP202: 13 | HQ202: 13 | HR202: 13 | HS202: 13 | HT202: 13 | HU202: 13 | HV202: 13 | HW202: 13 | HX202: 13 | HY202: 13 | HZ202: 13 | IA202: 13 | IB202: 13 | IC202: 13 | ID202: 13 | IE202: 13 | IF202: 13 | IG202: 13 | IH202: 13 | II202: 13 | IJ202: 13 | IK202: 13 | IL202: 13 | IM202: 13 | IN202: 13 | IO202: 13 | IP202: 13 | IQ202: 13
A203: 14 | B203: 14 | C203: 14 | D203: 14 | E203: 14 | F203: 14 | G203: 14 | H203: 14 | I203: 14 | J203: 14 | K203: 14 | L203: 14 | M203: 14 | N203: 14 | O203: 14 | P203: 14 | Q203: 14 | R203: 14 | S203: 14 | T203: 14 | U203: 14 | V203: 14 | W203: 14 | X203: 14 | Y203: 14 | Z203: 14 | AA203: 14 | AB203: 14 | AC203: 14 | AD203: 14 | AE203: 14 | AF203: 14 | AG203: 14 | AH203: 14 | AI203: 14 | AJ203: 14 | AK203: 14 | AL203: 14 | AM203: 14 | AN203: 14 | AO203: 14 | AP203: 14 | AQ203: 14 | AR203: 14 | AS203: 14 | AT203: 14 | AU203: 14 | AV203: 14 | AW203: 14 | AX203: 14 | AY203: 14 | AZ203: 14 | BA203: 14 | BB203: 14 | BC203: 14 | BD203: 14 | BE203: 14 | BF203: 14 | BG203: 14 | BH203: 14 | BI203: 14 | BJ203: 14 | BK203: 14 | BL203: 14 | BM203: 14 | BN203: 14 | BO203: 14 | BP203: 14 | BQ203: 14 | BR203: 14 | BS203: 14 | BT203: 14 | BU203: 14 | BV203: 14 | BW203: 1 | BX203: 14 | BY203: 14 | BZ203: 14 | CA203: 14 | CB203: 14 | CC203: 14 | CD203: 14 | CE203: 14 | CF203: 14 | CG203: 14 | CH203: 14 | CI203: 14 | CJ203: 14 | CK203: 14 | CL203: 14 | CM203: 14 | CN203: 14 | CO203: 14 | CP203: 14 | CQ203: 14 | CR203: 14 | CS203: 14 | CT203: 14 | CU203: 14 | CV203: 14 | CW203: 14 | CX203: 14 | CY203: 14 | CZ203: 14 | DA203: 14 | DB203: 14 | DC203: 7 | DD203: 14 | DE203: 14 | DF203: 14 | DG203: 14 | DH203: 14 | DI203: 14 | DJ203: 14 | DK203: 14 | DL203: 14 | DM203: 14 | DN203: 14 | DO203: 14 | DP203: 14 | DQ203: 14 | DR203: 3 | DS203: 14 | DT203: 14 | DU203: 14 | DV203: 14 | DW203: 14 | DX203: 14 | DY203: 14 | DZ203: 14 | EA203: 14 | EB203: 14 | EC203: 14 | ED203: 14 | EE203: 14 | EF203: 5 | EG203: 14 | EH203: 14 | EI203: 14 | EJ203: 14 | EK203: 14 | EL203: 14 | EM203: 14 | EN203: 14 | EO203: 14 | EP203: 14 | EQ203: 14 | ER203: 14 | ES203: 14 | ET203: 14 | EU203: 14 | EV203: 14 | EW203: 14 | EX203: 14 | EY203: 14 | EZ203: 14 | FA203: 14 | FB203: 14 | FC203: 14 | FD203: 14 | FE203: 14 | FF203: 14 | FG203: 14 | FH203: 14 | FI203: 14 | FJ203: 14 | FK203: 14 | FL203: 14 | FM203: 14 | FN203: 14 | FO203: 14 | FP203: 14 | FQ203: 14 | FR203: 14 | FS203: 14 | FT203: 14 | FU203: 14 | FV203: 14 | FW203: 14 | FX203: 14 | FY203: 14 | FZ203: 14 | GA203: 14 | GB203: 14 | GC203: 14 | GD203: 14 | GE203: 14 | GF203: 14 | GG203: 14 | GH203: 14 | GI203: 14 | GJ203: 14 | GK203: 14 | GL203: 14 | GM203: 14 | GN203: 14 | GO203: 14 | GP203: 14 | GQ203: 14 | GR203: 14 | GS203: 14 | GT203: 14 | GU203: 14 | GV203: 14 | GW203: 14 | GX203: 14 | GY203: 14 | GZ203: 14 | HA203: 14 | HB203: 14 | HC203: 14 | HD203: 14 | HE203: 14 | HF203: 14 | HG203: 14 | HH203: 14 | HI203: 14 | HJ203: 14 | HK203: 14 | HL203: 14 | HM203: 14 | HN203: 14 | HO203: 14 | HP203: 14 | HQ203: 14 | HR203: 14 | HS203: 14 | HT203: 14 | HU203: 14 | HV203: 14 | HW203: 14 | HX203: 14 | HY203: 14 | HZ203: 14 | IA203: 14 | IB203: 14 | IC203: 14 | ID203: 14 | IE203: 14 | IF203: 14 | IG203: 14 | IH203: 14 | II203: 14 | IJ203: 14 | IK203: 14 | IL203: 14 | IM203: 14 | IN203: 14 | IO203: 14 | IP203: 14 | IQ203: 14
A204: 15 | B204: 15 | C204: 15 | D204: 15 | E204: 15 | F204: 15 | G204: 15 | H204: 15 | I204: 15 | J204: 15 | K204: 15 | L204: 15 | M204: 15 | N204: 15 | O204: 15 | P204: 15 | Q204: 15 | R204: 15 | S204: 15 | T204: 15 | U204: 15 | V204: 15 | W204: 15 | X204: 15 | Y204: 15 | Z204: 15 | AA204: 15 | AB204: 15 | AC204: 15 | AD204: 15 | AE204: 15 | AF204: 15 | AG204: 15 | AH204: 15 | AI204: 15 | AJ204: 15 | AK204: 15 | AL204: 15 | AM204: 15 | AN204: 15 | AO204: 15 | AP204: 15 | AQ204: 15 | AR204: 15 | AS204: 15 | AT204: 15 | AU204: 15 | AV204: 15 | AW204: 15 | AX204: 15 | AY204: 15 | AZ204: 15 | BA204: 15 | BB204: 15 | BC204: 15 | BD204: 15 | BE204: 15 | BF204: 15 | BG204: 15 | BH204: 15 | BI204: 15 | BJ204: 15 | BK204: 15 | BL204: 15 | BM204: 15 | BN204: 15 | BO204: 15 | BP204: 15 | BQ204: 15 | BR204: 15 | BS204: 15 | BT204: 15 | BU204: 15 | BV204: 15 | BW204: 2 | BX204: 15 | BY204: 15 | BZ204: 15 | CA204: 15 | CB204: 15 | CC204: 15 | CD204: 15 | CE204: 15 | CF204: 15 | CG204: 15 | CH204: 15 | CI204: 15 | CJ204: 15 | CK204: 15 | CL204: 1 | CM204: 15 | CN204: 15 | CO204: 15 | CP204: 15 | CQ204: 15 | CR204: 15 | CS204: 15 | CT204: 15 | CU204: 15 | CV204: 15 | CW204: 15 | CX204: 15 | CY204: 15 | CZ204: 15 | DA204: 15 | DB204: 15 | DC204: 8 | DD204: 15 | DE204: 15 | DF204: 15 | DG204: 15 | DH204: 15 | DI204: 15 | DJ204: 15 | DK204: 15 | DL204: 15 | DM204: 15 | DN204: 15 | DO204: 15 | DP204: 15 | DQ204: 15 | DR204: 4 | DS204: 15 | DT204: 15 | DU204: 15 | DV204: 15 | DW204: 15 | DX204: 15 | DY204: 15 | DZ204: 15 | EA204: 15 | EB204: 15 | EC204: 15 | ED204: 15 | EE204: 15 | EF204: 6 | EG204: 15 | EH204: 15 | EI204: 15 | EJ204: 15 | EK204: 15 | EL204: 15 | EM204: 15 | EN204: 15 | EO204: 15 | EP204: 15 | EQ204: 15 | ER204: 15 | ES204: 15 | ET204: 15 | EU204: 15 | EV204: 15 | EW204: 15 | EX204: 15 | EY204: 15 | EZ204: 15 | FA204: 1 | FB204: 15 | FC204: 15 | FD204: 15 | FE204: 15 | FF204: 15 | FG204: 15 | FH204: 15 | FI204: 15 | FJ204: 15 | FK204: 15 | FL204: 15 | FM204: 15 | FN204: 15 | FO204: 15 | FP204: 15 | FQ204: 15 | FR204: 15 | FS204: 15 | FT204: 15 | FU204: 15 | FV204: 15 | FW204: 15 | FX204: 15 | FY204: 15 | FZ204: 15 | GA204: 15 | GB204: 15 | GC204: 15 | GD204: 15 | GE204: 15 | GF204: 15 | GG204: 15 | GH204: 15 | GI204: 15 | GJ204: 15 | GK204: 15 | GL204: 15 | GM204: 15 | GN204: 15 | GO204: 15 | GP204: 15 | GQ204: 15 | GR204: 15 | GS204: 15 | GT204: 15 | GU204: 15 | GV204: 15 | GW204: 15 | GX204: 15 | GY204: 15 | GZ204: 15 | HA204: 15 | HB204: 15 | HC204: 15 | HD204: 15 | HE204: 15 | HF204: 15 | HG204: 15 | HH204: 15 | HI204: 15 | HJ204: 15 | HK204: 15 | HL204: 15 | HM204: 15 | HN204: 15 | HO204: 15 | HP204: 15 | HQ204: 15 | HR204: 15 | HS204: 15 | HT204: 15 | HU204: 15 | HV204: 15 | HW204: 15 | HX204: 15 | HY204: 15 | HZ204: 15 | IA204: 15 | IB204: 15 | IC204: 15 | ID204: 15 | IE204: 15 | IF204: 15 | IG204: 15 | IH204: 15 | II204: 15 | IJ204: 15 | IK204: 15 | IL204: 15 | IM204: 15 | IN204: 15 | IO204: 15 | IP204: 15 | IQ204: 15
A205: 16 | B205: 16 | C205: 16 | D205: 16 | E205: 16 | F205: 16 | G205: 16 | H205: 16 | I205: 16 | J205: 16 | K205: 16 | L205: 16 | M205: 16 | N205: 16 | O205: 16 | P205: 16 | Q205: 16 | R205: 16 | S205: 16 | T205: 16 | U205: 16 | V205: 16 | W205: 16 | X205: 16 | Y205: 16 | Z205: 16 | AA205: 16 | AB205: 16 | AC205: 16 | AD205: 16 | AE205: 16 | AF205: 16 | AG205: 16 | AH205: 16 | AI205: 16 | AJ205: 16 | AK205: 16 | AL205: 16 | AM205: 16 | AN205: 16 | AO205: 16 | AP205: 16 | AQ205: 16 | AR205: 16 | AS205: 16 | AT205: 16 | AU205: 16 | AV205: 16 | AW205: 16 | AX205: 16 | AY205: 16 | AZ205: 16 | BA205: 16 | BB205: 16 | BC205: 16 | BD205: 16 | BE205: 16 | BF205: 16 | BG205: 16 | BH205: 16 | BI205: 1 | BJ205: 16 | BK205: 16 | BL205: 16 | BM205: 16 | BN205: 16 | BO205: 16 | BP205: 16 | BQ205: 16 | BR205: 16 | BS205: 16 | BT205: 16 | BU205: 16 | BV205: 16 | BW205: 3 | BX205: 16 | BY205: 16 | BZ205: 16 | CA205: 16 | CB205: 16 | CC205: 16 | CD205: 16 | CE205: 16 | CF205: 16 | CG205: 16 | CH205: 16 | CI205: 16 | CJ205: 16 | CK205: 16 | CL205: 2 | CM205: 16 | CN205: 16 | CO205: 16 | CP205: 16 | CQ205: 16 | CR205: 16 | CS205: 16 | CT205: 16 | CU205: 16 | CV205: 16 | CW205: 16 | CX205: 16 | CY205: 16 | CZ205: 16 | DA205: 16 | DB205: 16 | DC205: 9 | DD205: 16 | DE205: 16 | DF205: 16 | DG205: 16 | DH205: 16 | DI205: 16 | DJ205: 16 | DK205: 16 | DL205: 16 | DM205: 16 | DN205: 16 | DO205: 16 | DP205: 16 | DQ205: 16 | DR205: 5 | DS205: 16 | DT205: 16 | DU205: 16 | DV205: 16 | DW205: 16 | DX205: 16 | DY205: 16 | DZ205: 16 | EA205: 16 | EB205: 16 | EC205: 16 | ED205: 16 | EE205: 16 | EF205: 7 | EG205: 16 | EH205: 16 | EI205: 16 | EJ205: 16 | EK205: 16 | EL205: 16 | EM205: 16 | EN205: 16 | EO205: 16 | EP205: 16 | EQ205: 16 | ER205: 16 | ES205: 16 | ET205: 16 | EU205: 16 | EV205: 16 | EW205: 16 | EX205: 16 | EY205: 16 | EZ205: 16 | FA205: 2 | FB205: 16 | FC205: 16 | FD205: 16 | FE205: 16 | FF205: 16 | FG205: 16 | FH205: 16 | FI205: 16 | FJ205: 16 | FK205: 16 | FL205: 16 | FM205: 16 | FN205: 16 | FO205: 16 | FP205: 16 | FQ205: 16 | FR205: 16 | FS205: 16 | FT205: 16 | FU205: 16 | FV205: 16 | FW205: 16 | FX205: 16 | FY205: 16 | FZ205: 16 | GA205: 16 | GB205: 16 | GC205: 16 | GD205: 16 | GE205: 16 | GF205: 16 | GG205: 16 | GH205: 16 | GI205: 16 | GJ205: 16 | GK205: 16 | GL205: 16 | GM205: 16 | GN205: 16 | GO205: 16 | GP205: 16 | GQ205: 16 | GR205: 16 | GS205: 16 | GT205: 16 | GU205: 16 | GV205: 16 | GW205: 16 | GX205: 16 | GY205: 16 | GZ205: 16 | HA205: 16 | HB205: 16 | HC205: 16 | HD205: 16 | HE205: 16 | HF205: 16 | HG205: 16 | HH205: 16 | HI205: 16 | HJ205: 16 | HK205: 16 | HL205: 16 | HM205: 16 | HN205: 16 | HO205: 16 | HP205: 16 | HQ205: 16 | HR205: 16 | HS205: 16 | HT205: 16 | HU205: 16 | HV205: 16 | HW205: 16 | HX205: 16 | HY205: 16 | HZ205: 16 | IA205: 16 | IB205: 16 | IC205: 16 | ID205: 16 | IE205: 16 | IF205: 16 | IG205: 16 | IH205: 16 | II205: 16 | IJ205: 16 | IK205: 16 | IL205: 16 | IM205: 16 | IN205: 16 | IO205: 16 | IP205: 16 | IQ205: 16
A206: 17 | B206: 17 | C206: 17 | D206: 17 | E206: 17 | F206: 17 | G206: 17 | H206: 17 | I206: 17 | J206: 17 | K206: 17 | L206: 17 | M206: 17 | N206: 17 | O206: 17 | P206: 17 | Q206: 17 | R206: 17 | S206: 17 | T206: 17 | U206: 17 | V206: 17 | W206: 17 | X206: 17 | Y206: 1 | Z206: 17 | AA206: 17 | AB206: 17 | AC206: 17 | AD206: 17 | AE206: 17 | AF206: 17 | AG206: 17 | AH206: 17 | AI206: 17 | AJ206: 1 | AK206: 17 | AL206: 17 | AM206: 17 | AN206: 17 | AO206: 17 | AP206: 17 | AQ206: 17 | AR206: 17 | AS206: 17 | AT206: 17 | AU206: 17 | AV206: 17 | AW206: 17 | AX206: 17 | AY206: 17 | AZ206: 17 | BA206: 17 | BB206: 17 | BC206: 17 | BD206: 17 | BE206: 17 | BF206: 17 | BG206: 17 | BH206: 17 | BI206: 2 | BJ206: 17 | BK206: 17 | BL206: 17 | BM206: 17 | BN206: 17 | BO206: 17 | BP206: 17 | BQ206: 17 | BR206: 17 | BS206: 17 | BT206: 17 | BU206: 17 | BV206: 17 | BW206: 4 | BX206: 17 | BY206: 17 | BZ206: 17 | CA206: 17 | CB206: 17 | CC206: 17 | CD206: 17 | CE206: 17 | CF206: 17 | CG206: 17 | CH206: 17 | CI206: 17 | CJ206: 17 | CK206: 17 | CL206: 3 | CM206: 17 | CN206: 17 | CO206: 17 | CP206: 17 | CQ206: 17 | CR206: 17 | CS206: 17 | CT206: 17 | CU206: 17 | CV206: 17 | CW206: 17 | CX206: 17 | CY206: 17 | CZ206: 17 | DA206: 17 | DB206: 17 | DC206: 10 | DD206: 17 | DE206: 17 | DF206: 17 | DG206: 17 | DH206: 17 | DI206: 17 | DJ206: 17 | DK206: 17 | DL206: 17 | DM206: 17 | DN206: 17 | DO206: 17 | DP206: 17 | DQ206: 17 | DR206: 6 | DS206: 17 | DT206: 17 | DU206: 17 | DV206: 17 | DW206: 17 | DX206: 17 | DY206: 17 | DZ206: 17 | EA206: 17 | EB206: 17 | EC206: 17 | ED206: 17 | EE206: 17 | EF206: 8 | EG206: 17 | EH206: 17 | EI206: 17 | EJ206: 17 | EK206: 17 | EL206: 17 | EM206: 17 | EN206: 17 | EO206: 17 | EP206: 1 | EQ206: 1 | ER206: 17 | ES206: 17 | ET206: 17 | EU206: 17 | EV206: 17 | EW206: 17 | EX206: 17 | EY206: 17 | EZ206: 17 | FA206: 3 | FB206: 17 | FC206: 17 | FD206: 17 | FE206: 17 | FF206: 17 | FG206: 17 | FH206: 17 | FI206: 17 | FJ206: 17 | FK206: 17 | FL206: 17 | FM206: 17 | FN206: 17 | FO206: 17 | FP206: 17 | FQ206: 17 | FR206: 17 | FS206: 17 | FT206: 17 | FU206: 17 | FV206: 17 | FW206: 17 | FX206: 1 | FY206: 17 | FZ206: 17 | GA206: 17 | GB206: 17 | GC206: 17 | GD206: 17 | GE206: 17 | GF206: 17 | GG206: 17 | GH206: 17 | GI206: 17 | GJ206: 17 | GK206: 17 | GL206: 17 | GM206: 17 | GN206: 17 | GO206: 17 | GP206: 17 | GQ206: 17 | GR206: 17 | GS206: 17 | GT206: 17 | GU206: 17 | GV206: 17 | GW206: 17 | GX206: 17 | GY206: 17 | GZ206: 17 | HA206: 17 | HB206: 17 | HC206: 17 | HD206: 17 | HE206: 17 | HF206: 17 | HG206: 17 | HH206: 17 | HI206: 17 | HJ206: 17 | HK206: 17 | HL206: 17 | HM206: 17 | HN206: 17 | HO206: 17 | HP206: 17 | HQ206: 17 | HR206: 17 | HS206: 17 | HT206: 17 | HU206: 17 | HV206: 17 | HW206: 17 | HX206: 17 | HY206: 17 | HZ206: 17 | IA206: 17 | IB206: 17 | IC206: 17 | ID206: 17 | IE206: 17 | IF206: 17 | IG206: 17 | IH206: 17 | II206: 17 | IJ206: 17 | IK206: 17 | IL206: 17 | IM206: 17 | IN206: 17 | IO206: 17 | IP206: 17 | IQ206: 17
... 356 more rows
